Workbook

Sheet Empleados fijos
A4: Instituto Dominicano para la Calidad (INDOCAL)
A5: Nómina de Sueldos: Empleados Fijos
A7: Correspondiente al mes de agosto del año 2022
A8: Reg. No. | B8: Nombre | C8: Sexo | D8: Departamento | E8: Función | F8: Estatus | G8: Sueldo Bruto (RD$) | H8: IS/R (Ley 11-92) (1*) | I8: Seguridad Social (LEY 87-01) | Q8: Total Retenciones y Aportes | S8: Sueldo Neto (RD$)
I9: Seguro de Pensión (9.97%) | K9: Riesgos Laborales (1.15%) (2*) | L9: Seguro de Salud (10.53%) (3*) | N9: Registro Dependientes Adicionales (4*) | O9: Seg. Vida, Ces. E Invalidez | P9: Otros descuentos | Q9: Deducción Empleado | R9: Aportes Patronal
I10: Empleado (2.87%) | J10: Patronal (7.10%) | L10: Empleado (3.04%) | M10: Patronal (7.09%)
A11: DIRECCION DE RECURSOS HUMANOS
A12: 1 | B12: IVONNE VILLETA VIDAL | C12: Femenino | D12: DIRECCION DE RECURSOS HUMANOS | E12: ENCARGADA DE RECURSOS HUMANOS | F12: FIJO | G12: 130,000.00 | H12: 19,162.19 | I12: =G12*2.87/100 -> 3,731.00 | J12: =G12*7.1/100 -> 9,230.00 | K12: =G12*1.15% -> 1,495.00 | L12: =G12*3.04% -> 3,952.00 | M12: =G12*7.09% -> 9,217.00 | O12: 25.00 | P12: 29,998.40 | Q12: =H12+I12+L12+N12+P12+O12 -> 56,868.59 | R12: =J12+K12+M12 -> 19,942.00 | S12: =G12-Q12 -> 73,131.41
A13: 2 | B13: ANA EMILIA JORGE RAMOS | C13: Femenino | D13: DIRECCION DE RECURSOS HUMANOS | E13: PARALEGAL | F13: FIJO | G13: 50,000.00 | H13: 1,854.00 | I13: =G13*2.87/100 -> 1,435.00 | J13: =G13*7.1/100 -> 3,550.00 | K13: =G13*1.15% -> 575.00 | L13: =G13*3.04% -> 1,520.00 | M13: =G13*7.09% -> 3,545.00 | O13: 25.00 | P13: 4,100.00 | Q13: =H13+I13+L13+N13+P13+O13 -> 8,934.00 | R13: =J13+K13+M13 -> 7,670.00 | S13: =G13-Q13 -> 41,066.00
A14: 3 | B14: DANERY DE PAULA HERRERA | C14: Femenino | D14: DIRECCION DE RECURSOS HUMANOS | E14: ANALISTA DE RECURSOS HUMANOS | F14: Carrera Administrativa | G14: 48,000.00 | I14: =G14*2.87/100 -> 1,377.60 | J14: 3,408.00 | K14: 552.00 | L14: 1,459.20 | M14: 3,403.20 | N14: 2,700.24 | O14: 25.00 | P14: 1,200.00 | Q14: =H14+I14+L14+N14+P14+O14 -> 6,762.04 | R14: =J14+K14+M14 -> 7,363.20 | S14: 41,237.96
A15: 4 | B15: KAREN DEL MILAGROS REYES RODRIGUEZ | C15: Femenino | D15: DIRECCION DE RECURSOS HUMANOS | E15: ANALISTA DE CAPACITACION | F15: Carrera Administrativa | G15: 48,000.00 | I15: =G15*2.87/100 -> 1,377.60 | J15: 3,408.00 | K15: 552.00 | L15: 1,459.20 | M15: 3,403.20 | N15: 2,700.24 | O15: 25.00 | P15: 8,080.88 | Q15: =H15+I15+L15+N15+P15+O15 -> 13,642.92 | R15: =J15+K15+M15 -> 7,363.20 | S15: 34,357.08
A16: 5 | B16: REYNA PEREZ OLIVERO | C16: Femenino | D16: DIRECCION DE RECURSOS HUMANOS | E16: SECRETARIA | F16: FIJO | G16: 40,000.00 | I16: =G16*2.87/100 -> 1,148.00 | J16: 2,840.00 | K16: 460.00 | L16: 1,216.00 | M16: 2,836.00 | O16: 25.00 | P16: 5,200.00 | Q16: 7,589.00 | R16: =J16+K16+M16 -> 6,136.00 | S16: 32,411.00
A17: 6 | B17: MIRLA MARINALDA BLANCO MARTINEZ | C17: Femenino | D17: DIRECCION DE RECURSOS HUMANOS | E17: CONSERJE | F17: FIJO | G17: 20,000.00 | I17: =G17*2.87/100 -> 574.00 | J17: 1,420.00 | K17: =G17*1.15% -> 230.00 | L17: =G17*3.04% -> 608.00 | M17: =G17*7.09% -> 1,418.00 | O17: 25.00 | Q17: =H17+I17+L17+N17+P17+O17 -> 1,207.00 | R17: =J17+K17+M17 -> 3,068.00 | S17: 18,793.00
A18: 7 | B18: ARACELIS FELIZ BATISTA | C18: Femenino | D18: DIRECCION DE RECURSOS HUMANOS | E18: MENSAJERO (A) INTERNO (A) | F18: FIJO | G18: 10,000.00 | I18: 287.00 | J18: 710.00 | K18: 115.00 | L18: 304.00 | M18: 709.00 | O18: 25.00 | Q18: 616.00 | R18: 1,534.00 | S18: 9,384.00
A19: SUB-TOTAL | G19: =SUM(G12:G18) -> 346000 | H19: =SUM(H12:H18) -> 21016.19 | I19: 9930.2 | J19: 24566 | K19: 3979 | L19: 10518.4 | M19: 24531.4 | N19: 5400.48 | O19: 175 | P19: 48579.28 | Q19: 95619.55 | R19: 53076.4 | S19: 250380.45
A20: DIRECCION DE PLANIFICACION Y DESARROLLO
A21: 8 | B21: MILDRED PERALTA CEPEDA | C21: Femenino | D21: DIRECCION DE PLANIFICACION Y DESARROLLO | E21: DIRECTORA PLANIFICACION Y DESARROLLO | F21: Carrera Administrativa | G21: 130,000.00 | H21: 19162.19 | I21: =G21*2.87/100 -> 3,731.00 | J21: =G21*7.1/100 -> 9,230.00 | K21: =G21*1.15% -> 1,495.00 | L21: =G21*3.04% -> 3,952.00 | M21: =G21*7.09% -> 9,217.00 | O21: 25.00 | P21: 2477.68 | Q21: =H21+I21+L21+N21+P21+O21 -> 29,347.87 | R21: =J21+K21+M21 -> 19,942.00 | S21: =G21-Q21 -> 100,652.13
A22: 9 | B22: SUNEIDY GOMEZ PEREZ | C22: Femenino | D22: DIRECCION DE PLANIFICACION Y DESARROLLO | E22: ANALISTA DE CALIDAD EN LA GESTION | F22: Carrera Administrativa | G22: 60,000.00 | H22: 370.47 | I22: 1,722.00 | J22: 4,260.00 | K22: 690.00 | L22: 1,824.00 | M22: 4,254.00 | O22: 25.00 | P22: 6122.86 | Q22: 10,064.33 | R22: 9,204.00 | S22: 49,935.67
A23: 10 | B23: AGUSTINA YOSELIN CRUZ VINICIO | C23: Femenino | D23: DIRECCION DE PLANIFICACION Y DESARROLLO | E23: SECRETARIA | F23: Carrera Administrativa | G23: 35,000.00 | I23: =G23*2.87/100 -> 1,004.50 | J23: =G23*7.1/100 -> 2,485.00 | K23: =G23*1.15% -> 402.50 | L23: =G23*3.04% -> 1,064.00 | M23: =G23*7.09% -> 2,481.50 | O23: 25.00 | P23: 100.00 | Q23: =H23+I23+L23+N23+P23+O23 -> 2,193.50 | R23: =J23+K23+M23 -> 5,369.00 | S23: 32,806.50
A24: 11 | B24: SABRINA SANTOS MELO | C24: Femenino | D24: DIRECCION DE PLANIFICACION Y DESARROLLO | E24: SECRETARIA | F24: FIJO | G24: 30,000.00 | I24: =G24*2.87/100 -> 861.00 | J24: =G24*7.1/100 -> 2,130.00 | K24: =G24*1.15% -> 345.00 | L24: =G24*3.04% -> 912.00 | M24: =G24*7.09% -> 2,127.00 | O24: 25.00 | Q24: =H24+I24+L24+N24+P24+O24 -> 1,798.00 | R24: =J24+K24+M24 -> 4,602.00 | S24: 28,202.00
A25: 12 | B25: FRANCILIS GARCIA TRINIDAD | C25: Femenino | D25: DIRECCION DE PLANIFICACION Y DESARROLLO | E25: AYUDANTE TECNICO | F25: FIJO | G25: 31,000.00 | I25: =G25*2.87/100 -> 889.70 | J25: =G25*7.1/100 -> 2,201.00 | K25: =G25*1.15% -> 356.50 | L25: =G25*3.04% -> 942.40 | M25: =G25*7.09% -> 2,197.90 | O25: 25.00 | P25: 1,100.00 | Q25: =H25+I25+L25+N25+P25+O25 -> 2,957.10 | R25: =J25+K25+M25 -> 4,755.40 | S25: 28,042.90
A26: 13 | B26: ANALIA MICHELL ROSA ALMONTE | C26: Femenino | D26: DIRECCION DE PLANIFICACION Y DESARROLLO | E26: ANALISTA | F26: FIJO | G26: 48,000.00 | H26: 1,571.73 | I26: 1,377.60 | J26: 3,408.00 | K26: 552.00 | L26: 1,459.20 | M26: 3,403.20 | O26: 25.00 | Q26: 4,433.53 | R26: 7,363.20 | S26: 43,566.47
A27: SUB-TOTAL | G27: =SUM(G21:G26) -> 334000 | H27: 21104.39 | I27: 9585.8 | J27: 23714 | K27: 3841 | L27: 10153.6 | M27: 23680.6 | N27: 0 | O27: 150 | P27: 9800.54 | Q27: 50794.33 | R27: 51235.6 | S27: 283205.67
A28: ALMACEN Y SUMINISTRO
A29: 14 | B29: YASMIN MICHEL DE LA CRUZ DE LA CRUZ | C29: Femenino | D29: ALMACEN Y SUMINISTRO | E29: ENCARGADO | F29: Carrera Administrativa | G29: 50,000.00 | I29: =G29*2.87/100 -> 1,435.00 | J29: =G29*7.1/100 -> 3,550.00 | K29: =G29*1.15% -> 575.00 | L29: =G29*3.04% -> 1,520.00 | M29: =+G29*7.09% -> 3,545.00 | N29: 1,350.12 | O29: 25.00 | P29: 7,992.84 | Q29: =H29+I29+L29+N29+P29+O29 -> 12,322.96 | R29: =+J29+K29+M29 -> 7,670.00 | S29: =G29-Q29 -> 37,677.04
A30: 15 | B30: EDWIN ANTIGUA ALCANTARA | C30: Masculino | D30: ALMACEN Y SUMINISTRO | E30: AUXILIAR | F30: FIJO | G30: 62,000.00 | H30: 3863.01 | I30: =G30*2.87/100 -> 1,779.40 | J30: =G30*7.1/100 -> 4,402.00 | K30: =G30*1.15% -> 713.00 | L30: =G30*3.04% -> 1,884.80 | M30: =+G30*7.09% -> 4,395.80 | O30: 25.00 | P30: 11,434.94 | Q30: =H30+I30+L30+N30+P30+O30 -> 18,987.15 | R30: =+J30+K30+M30 -> 9,510.80 | S30: =G30-Q30 -> 43,012.85
A31: 16 | B31: RAFAEL ARAFAF EURIPIDES TORRES LANTIGUA | C31: Masculino | D31: ALMACEN Y SUMINISTRO | E31: AUXILIAR DE ALMACEN Y SUMINISTRO | F31: FIJO | G31: 35,000.00 | I31: 1,004.50 | J31: 2,485.00 | K31: 402.50 | L31: 1,064.00 | M31: 2,481.50 | O31: 25.00 | Q31: 2,093.50 | R31: 5,369.00 | S31: 32,906.50
A32: 17 | B32: ROBERT GREGORY GUZMAN RIJO | C32: Masculino | D32: ALMACEN Y SUMINISTRO | E32: AUXILIAR DE ALMACEN Y SUMINISTRO | F32: FIJO | G32: 20,000.00 | I32: =G32*2.87/100 -> 574.00 | J32: =G32*7.1/100 -> 1,420.00 | K32: =G32*1.15% -> 230.00 | L32: =G32*3.04% -> 608.00 | M32: =+G32*7.09% -> 1,418.00 | O32: 25.00 | Q32: =H32+I32+L32+N32+P32+O32 -> 1,207.00 | R32: =+J32+K32+M32 -> 3,068.00 | S32: 18,793.00
A33: 18 | B33: AUSTRIA DEL ROSARIO PADILLA BATISTA | C33: Femenino | D33: ALMACEN Y SUMINISTRO | E33: AUXILIAR DE ALMACEN Y SUMINISTRO | F33: FIJO | G33: 15,000.00 | I33: 430.50 | J33: 1,065.00 | K33: 172.50 | L33: 456.00 | M33: 1,063.50 | O33: 25.00 | Q33: 911.50 | R33: 2,301.00 | S33: 14,088.50
A34: 19 | B34: DAMARIS ABREU VASQUEZ | C34: Femenino | D34: ALMACEN Y SUMINISTRO | E34: AUXILIAR DE ALMACEN Y SUMINISTRO | F34: FIJO | G34: 25,000.00 | I34: 717.50 | J34: 1,775.00 | K34: 287.50 | L34: 760.00 | M34: 1,772.50 | O34: 25.00 | Q34: 1,502.50 | R34: 3,835.00 | S34: 23,497.50
A35: 20 | B35: TERESITA DE JESUS GOMEZ | C35: Femenino | D35: ALMACEN Y SUMINISTRO | E35: AUXILIAR ADMISTRATIVO | F35: FIJO | G35: 10,000.00 | I35: 287.00 | J35: 710.00 | K35: 115.00 | L35: 304.00 | M35: 709.00 | O35: 25.00 | Q35: 616.00 | R35: 1,534.00 | S35: 9,384.00
A36: SUB-TOTAL | G36: =SUM(G29:G35) -> 217000 | H36: =SUM(H29:H35) -> 3863.01 | I36: =SUM(I29:I35) -> 6227.9 | J36: =SUM(J29:J35) -> 15407 | K36: 2495.5 | L36: 6596.8 | M36: 15385.3 | N36: =SUM(N29:N35) -> 1350.12 | O36: =SUM(O29:O35) -> 175 | P36: =SUM(P29:P35) -> 19427.78 | Q36: =SUM(Q29:Q35) -> 37640.61 | R36: =SUM(R29:R35) -> 33287.8 | S36: =SUM(S29:S35) -> 179359.39
A37: DIRECCION ADMINISTRATIVA Y FINANCIERA
A38: 21 | B38: AMINTA ENCARNACION SANCHEZ | C38: Femenino | D38: DIRECCION ADMINISTRATIVA Y FINANCIERA | E38: SECRETARIA | F38: Carrera Administrativa | G38: 38,000.00 | I38: =G38*2.87/100 -> 1,090.60 | J38: =G38*7.1/100 -> 2,698.00 | K38: =G38*1.15% -> 437.00 | L38: =G38*3.04% -> 1,155.20 | M38: =G38*7.09% -> 2,694.20 | N38: 1,350.12 | O38: 25.00 | P38: 5,200.00 | Q38: =H38+I38+L38+N38+P38+O38 -> 8,820.92 | R38: =+J38+K38+M38 -> 5,829.20 | S38: =G38-Q38 -> 29,179.08
A39: 22 | B39: NARDA ANTONIA GIL DE LA ROSA | C39: Femenino | D39: DIRECCION ADMINISTRATIVA Y FINANCIERA | E39: AUXILIAR | F39: FIJO | G39: 50,000.00 | I39: =G39*2.87/100 -> 1,435.00 | J39: =G39*7.1/100 -> 3,550.00 | K39: =G39*1.15% -> 575.00 | L39: =G39*3.04% -> 1,520.00 | M39: =G39*7.09% -> 3,545.00 | O39: 25.00 | P39: 100 | Q39: =H39+I39+L39+N39+P39+O39 -> 3,080.00 | R39: =+J39+K39+M39 -> 7,670.00 | S39: =G39-Q39 -> 46,920.00
A40: 23 | B40: MASSIEL SANCHEZ FABIAN | C40: Femenino | D40: DIRECCION ADMINISTRATIVA Y FINANCIERA | E40: AUXILIAR DE CONTABILIDAD | F40: FIJO | G40: 35,000.00 | I40: 1,004.50 | J40: 2,485.00 | K40: 402.50 | L40: 1,064.00 | M40: 2,481.50 | O40: 25.00 | P40: 100 | Q40: 2,193.50 | R40: 5,369.00 | S40: 32,806.50
A41: 24 | B41: YEVALYN MONTERO ESPEJO | C41: Femenino | D41: DIRECCION ADMINISTRATIVA Y FINANCIERA | E41: CONTADORA | F41: Carrera Administrativa | G41: 62,000.00 | I41: 1,779.40 | J41: 4,402.00 | K41: 713.00 | L41: 1,884.80 | M41: 4,395.80 | N41: 1,350.12 | O41: 25.00 | P41: 4808.8 | Q41: 9,848.12 | R41: 9,510.80 | S41: 52,151.88
A42: 25 | B42: JHOAN MARCOS DE LA ROSA MEDINA | C42: Masculino | D42: DIRECCION ADMINISTRATIVA Y FINANCIERA | E42: AUXILIAR ADMINISTRATIVO | F42: FIJO | G42: 45,000.00 | I42: =G42*2.87/100 -> 1,291.50 | J42: =G42*7.1/100 -> 3,195.00 | K42: =G42*1.15% -> 517.50 | L42: =G42*3.04% -> 1,368.00 | M42: =G42*7.09% -> 3,190.50 | O42: 25.00 | Q42: =H42+I42+L42+N42+P42+O42 -> 2,684.50 | R42: =+J42+K42+M42 -> 6,903.00 | S42: 42,315.50
A43: 26 | B43: LUISA MARIA ECHAVARRIA FELIZ | C43: Femenino | D43: DIRECCION ADMINISTRATIVA Y FINANCIERA | E43: AUXILIAR ADMINISTRATIVO | F43: FIJO | G43: 32,000.00 | I43: 918.40 | J43: 2,272.00 | K43: 368.00 | L43: 972.80 | M43: 2,268.80 | O43: 25.00 | P43: 1000 | Q43: 2,916.20 | R43: 4,908.80 | S43: 29,083.80
A44: 27 | B44: MARIA LEONIDAS LAZALA GOMEZ | C44: Femenino | D44: DIRECCION ADMINISTRATIVA Y FINANCIERA | E44: SECRETARIA | F44: FIJO | G44: 40,000.00 | I44: 1,148.00 | J44: 2,840.00 | K44: 460.00 | L44: 1,216.00 | M44: 2,836.00 | O44: 25.00 | Q44: 2,389.00 | R44: 6,136.00 | S44: 37,611.00
A45: 28 | B45: YANIA ELIZABETH LIRANZO TEJADA | C45: Femenino | D45: DIRECCION ADMINISTRATIVA Y FINANCIERA | E45: SECRETARIA | F45: FIJO | G45: 45,000.00 | H45: 1148.33 | I45: =G45*2.87/100 -> 1,291.50 | J45: =G45*7.1/100 -> 3,195.00 | K45: =G45*1.15% -> 517.50 | L45: =G45*3.04% -> 1,368.00 | M45: =G45*7.09% -> 3,190.50 | O45: 25.00 | Q45: 3,832.83 | R45: 6,903.00 | S45: 41,167.17
A46: 29 | B46: MARIA ALTAGRACIA MERCEDES DIAZ | C46: Femenino | D46: DIRECCION ADMINISTRATIVA Y FINANCIERA | E46: AUXILIAR ADMINISTRATIVO I | F46: FIJO | G46: 40,000.00 | H46: 442.65 | I46: =G46*2.87/100 -> 1,148.00 | J46: =G46*7.1/100 -> 2,840.00 | K46: =G46*1.15% -> 460.00 | L46: =G46*3.04% -> 1,216.00 | M46: =G46*7.09% -> 2,836.00 | O46: 25.00 | Q46: =H46+I46+L46+N46+P46+O46 -> 2,831.65 | R46: =+J46+K46+M46 -> 6,136.00 | S46: 37,168.35
A47: 30 | B47: JANNE PATRICIA GERMAN MARIA | C47: Femenino | D47: DIRECCION ADMINISTRATIVA Y FINANCIERA | E47: AUXILIAR ADMINISTRATIVO | F47: FIJO | G47: 15,000.00 | I47: 430.50 | J47: 1,065.00 | K47: 172.50 | L47: 456.00 | M47: 1,063.50 | O47: 25.00 | Q47: 911.50 | R47: 2,301.00 | S47: 14,088.50
A48: 31 | B48: ARISLEYDA GEORGINA CASTRO CABRERA | C48: Femenino | D48: DIRECCION ADMINISTRATIVA Y FINANCIERA | E48: SECRETARIA | F48: FIJO | G48: 32,000.00 | I48: 918.40 | J48: 2,272.00 | K48: 368.00 | L48: 972.80 | M48: 2,268.80 | O48: 25.00 | Q48: 1,916.20 | R48: 4,908.80 | S48: 30,083.80
A49: 32 | B49: LAURA DE LOS ANGELES LUNA BUENO | C49: Femenino | D49: DIRECCION ADMINISTRATIVA Y FINANCIERA | E49: SECRETARIA | F49: FIJO | G49: 32,000.00 | I49: 918.40 | J49: 2,272.00 | K49: 368.00 | L49: 972.80 | M49: 2,268.80 | O49: 25.00 | P49: 2994.07 | Q49: 4,910.27 | R49: 4,908.80 | S49: 27,089.73
A50: SUB-TOTAL | G50: =SUM(G38:G49) -> 466,000.00 | H50: 1,590.98 | I50: 13,374.20 | J50: 33,086.00 | K50: 5,359.00 | L50: 14,166.40 | M50: 33,039.40 | N50: 2,700.24 | O50: 300.00 | P50: 14,202.87 | Q50: 46,334.69 | R50: 71,484.40 | S50: 419,665.31
A51: DIRECCION JURIDICA
A52: 33 | B52: RAFAEL ALFREDO MARCANO GUZMAN | C52: Masculino | D52: DIRECCION JURIDICA | E52: ENC. DEPTO. JURIDICO | F52: FIJO | G52: 130,000.00 | H52: 19,162.19 | I52: =G52*2.87/100 -> 3,731.00 | J52: =G52*7.1/100 -> 9,230.00 | K52: =G52*1.15% -> 1,495.00 | L52: =G52*3.04/100 -> 3,952.00 | M52: =+G52*7.09% -> 9,217.00 | O52: 25.00 | P52: 6,468.03 | Q52: =H52+I52+L52+N52+P52+O52 -> 33,338.22 | R52: =J52+K52+M52+P52 -> 26,410.03 | S52: =G52-Q52 -> 96,661.78
A53: 34 | B53: CARMEN ROSA GLASS VARGAS | C53: Femenino | D53: DIRECCION JURIDICA | E53: ABOGADA | F53: Carrera Administrativa | G53: 75,000.00 | H53: 6,309.35 | I53: =G53*2.87/100 -> 2,152.50 | J53: =G53*7.1/100 -> 5,325.00 | K53: =G53*1.15% -> 862.50 | L53: =G53*3.04/100 -> 2,280.00 | M53: =+G53*7.09% -> 5,317.50 | O53: 25.00 | P53: 100.00 | Q53: =H53+I53+L53+N53+P53+O53 -> 10,866.85 | R53: =J53+K53+M53+P53 -> 11,605.00 | S53: =G53-Q53 -> 64,133.15
A54: 35 | B54: CLEMENCIA SAMBOY RUIZ | C54: Femenino | D54: DIRECCION JURIDICA | E54: SECRETARIA | F54: Carrera Administrativa | G54: 32,000.00 | I54: =G54*2.87/100 -> 918.40 | J54: =G54*7.1/100 -> 2,272.00 | K54: 368.00 | L54: =G54*3.04/100 -> 972.80 | M54: =+G54*7.09% -> 2,268.80 | N54: 1,350.12 | O54: 25.00 | P54: 5535 | Q54: 8,801.32 | R54: =J54+K54+M54+P54 -> 10,443.80 | S54: 23,198.68
A55: 36 | B55: KATERINE PAOLA TINEO OGANDO | C55: Femenino | D55: DIRECCION JURIDICA | E55: ABOGADA | F55: FIJO | G55: 59,000.00 | H55: 185.3 | I55: 1,693.30 | J55: 4,189.00 | K55: 678.50 | L55: 1,793.60 | M55: 4,183.10 | N55: 1,350.12 | O55: 25.00 | P55: 5600 | Q55: 10,647.32 | R55: 14,650.60 | S55: 48,352.68
A56: 37 | B56: ZULEIKA HILARIO BIDO | C56: Femenino | D56: DIRECCION JURIDICA | E56: ABOGADA | F56: Carrera Administrativa | G56: 50,000.00 | H56: 1854 | I56: =G56*2.87/100 -> 1,435.00 | J56: =G56*7.1/100 -> 3,550.00 | K56: 575.00 | L56: =G56*3.04/100 -> 1,520.00 | M56: =+G56*7.09% -> 3,545.00 | O56: 25.00 | P56: 3200 | Q56: 8,034.00 | R56: 10,870.00 | S56: 41,966.00
A57: 38 | B57: YADIRA MONTERO RODRIGUEZ | C57: Femenino | D57: DIRECCION JURIDICA | E57: SECRETARIA | F57: FIJO | G57: 40,000.00 | I57: =G57*2.87/100 -> 1,148.00 | J57: =G57*7.1/100 -> 2,840.00 | K57: =G57*1.15% -> 460.00 | L57: =G57*3.04/100 -> 1,216.00 | M57: =+G57*7.09% -> 2,836.00 | O57: 25.00 | P57: 3059.6 | Q57: =H57+I57+L57+N57+P57+O57 -> 5,448.60 | R57: =J57+K57+M57+P57 -> 9,195.60 | S57: 34,551.40
A58: 39 | B58: KARINI FAMILIA LORA | C58: Femenino | D58: DIRECCION JURIDICA | E58: ABOGADA | F58: FIJO | G58: 59,000.00 | H58: 3298.47 | I58: 1,693.30 | J58: 4,189.00 | K58: 678.50 | L58: 1,793.60 | M58: 4,183.10 | O58: 25.00 | P58: 6457.29 | Q58: 13,267.66 | R58: 15,507.89 | S58: 45,732.34
A59: SUB-TOTAL | G59: =SUM(G52:G58) -> 445,000.00 | H59: =SUM(H52:H58) -> 30,809.31 | I59: =SUM(I52:I58) -> 12,771.50 | J59: =SUM(J52:J58) -> 31,595.00 | K59: =SUM(K52:K58) -> 5,117.50 | L59: =SUM(L52:L58) -> 13,528.00 | M59: =SUM(M52:M58) -> 31,550.50 | N59: =SUM(N52:N58) -> 2,700.24 | O59: =SUM(O52:O58) -> 175.00 | P59: =SUM(P52:P58) -> 30,419.92 | Q59: =SUM(Q52:Q58) -> 90,403.97 | R59: =SUM(R52:R58) -> 98,682.92 | S59: =SUM(S52:S58) -> 354,596.03
A60: DEPARTAMENTO DE COMUNICACIONES
A61: 40 | B61: MARGARET ARNALDA LEON BATISTA | C61: Femenino | D61: DEPARTAMENTO DE COMUNICACIONES | E61: PERIODISTA | F61: FIJO | G61: 75,000.00 | H61: 6,309.35 | I61: =G61*2.87/100 -> 2,152.50 | J61: =G61*7.1/100 -> 5,325.00 | K61: =+G61*1.15% -> 862.50 | L61: =G61*3.04/100 -> 2,280.00 | M61: =+G61*7.09% -> 5,317.50 | O61: 25.00 | P61: 100.00 | Q61: =H61+I61+L61+N61+P61+O61 -> 10,866.85 | R61: =J61+K61+M61 -> 11,505.00 | S61: =G61-Q61 -> 64,133.15
A62: 41 | B62: STEPHANIE ELIZABETH MOREL MONTAS | C62: Femenino | D62: DEPARTAMENTO DE COMUNICACIONES | E62: ENCARGADA DPTO. RELACIONES PUBLICAS | F62: FIJO | G62: 90,000.00 | H62: 5,368.45 | I62: =G62*2.87/100 -> 2,583.00 | J62: =G62*7.1/100 -> 6,390.00 | K62: =+G62*1.15% -> 1,035.00 | L62: =G62*3.04/100 -> 2,736.00 | M62: =+G62*7.09% -> 6,381.00 | O62: 25.00 | P62: 5,343.55 | Q62: =H62+I62+L62+N62+P62+O62 -> 16,056.00 | R62: =J62+K62+M62 -> 13,806.00 | S62: =G62-Q62 -> 73,944.00
A63: 42 | B63: JEORGINA ELIZABETH VIZCAINO MARTINEZ | C63: Femenino | D63: DEPARTAMENTO DE COMUNICACIONES | E63: DISEÑADOR GRAFICO | F63: FIJO | G63: 45,000.00 | I63: =G63*2.87/100 -> 1,291.50 | J63: =G63*7.1/100 -> 3,195.00 | K63: =+G63*1.15% -> 517.50 | L63: =G63*3.04/100 -> 1,368.00 | M63: =+G63*7.09% -> 3,190.50 | N63: 1,350.12 | O63: 25.00 | P63: 2,100.00 | Q63: =H63+I63+L63+N63+P63+O63 -> 6,134.62 | R63: =J63+K63+M63 -> 6,903.00 | S63: 38,865.38
A64: 43 | B64: GILBERTO CRUZ RAMOS | C64: Masculino | D64: DEPARTAMENTO DE COMUNICACIONES | E64: DISEÑADOR GRAFICO | F64: FIJO | G64: 40,000.00 | I64: 1,148.00 | J64: 2,840.00 | K64: 460.00 | L64: 1,216.00 | M64: 2,836.00 | O64: 25.00 | P64: 100.00 | Q64: 2,489.00 | R64: 6,136.00 | S64: 37,511.00
A65: 44 | B65: MATILDE ORTIZ | C65: Femenino | D65: DEPARTAMENTO DE COMUNICACIONES | E65: AUXILIAR ADMINISTRATIVO | F65: FIJO | G65: 35,000.00 | I65: 1,004.50 | J65: 2,485.00 | K65: 402.50 | L65: 1,064.00 | M65: 2,481.50 | O65: 25.00 | Q65: =H65+I65+L65+N65+P65+O65 -> 2,093.50 | R65: =J65+K65+M65 -> 5,369.00 | S65: 32,906.50
A66: 45 | B66: ROSA MILAGROS RIVAS CABRAL | C66: Femenino | D66: DEPARTAMENTO DE COMUNICACIONES | E66: SECRETARIA | F66: FIJO | G66: 32,000.00 | I66: 918.40 | J66: 2,272.00 | K66: 368.00 | L66: 972.80 | M66: 2,268.80 | O66: 25.00 | P66: 600.00 | Q66: 2,516.20 | R66: 4,908.80 | S66: 29,483.80
A67: 46 | B67: JOSE MIGUEL JAQUEZ PORTE | C67: Masculino | D67: DEPARTAMENTO DE COMUNICACIONES | E67: FOTOGRAFO | F67: FIJO | G67: 15,000.00 | I67: 430.50 | J67: 1,065.00 | K67: 172.50 | L67: 456.00 | M67: 1,063.50 | O67: 25.00 | Q67: 911.50 | R67: 2,301.00 | S67: 14,088.50
A68: 47 | B68: CARLOS RAMON CASTAING MATOS | C68: Masculino | D68: DEPARTAMENTO DE COMUNICACIONES | E68: FOTOGRAFO | F68: FIJO | G68: 40,000.00 | H68: 442.65 | I68: 1,148.00 | J68: 2,840.00 | K68: 460.00 | L68: 1,216.00 | M68: 2,836.00 | O68: 25.00 | Q68: 2,831.65 | R68: 6,136.00 | S68: 37,168.35
A69: 48 | B69: JOSEFINA MERCEDES FERNANDEZ PICHARDO | C69: Femenino | D69: DEPARTAMENTO DE COMUNICACIONES | E69: GESTOR DE REDES SOCIALES | F69: FIJO | G69: 35,000.00 | I69: 1,004.50 | J69: 2,485.00 | K69: 402.50 | L69: 1,064.00 | M69: 2,481.50 | O69: 25.00 | Q69: 2,093.50 | R69: 5,369.00 | S69: 32,906.50
A70: 49 | B70: HELEN ELIZA DE LOS SANTOS | C70: Femenino | D70: DEPARTAMENTO DE COMUNICACIONES | E70: GESTOR DE PROTOCOLO | F70: FIJO | G70: 35,000.00 | I70: 1,004.50 | J70: 2,485.00 | K70: 402.50 | L70: 1,064.00 | M70: 2,481.50 | O70: 25.00 | Q70: 2,093.50 | R70: 5,369.00 | S70: 32,906.50
A71: 50 | B71: ELAINE CAROLINA MATOS MIRANDA | C71: Femenino | D71: DEPARTAMENTO DE COMUNICACIONES | E71: GESTORA DE PROTOCOLO | F71: FIJO | G71: 60,000.00 | H71: 3,486.65 | I71: 1,722.00 | J71: 4,260.00 | K71: 690.00 | L71: 1,824.00 | M71: 4,254.00 | O71: 25.00 | Q71: 7,057.65 | R71: 9,204.00 | S71: 52,942.35
A72: SUB-TOTAL | G72: =SUM(G61:G71) -> 502000 | H72: 15607.1 | I72: 14407.4 | J72: 35642 | K72: 5773 | L72: 15260.8 | M72: 35591.8 | N72: 1350.12 | O72: 275 | P72: 8243.55 | Q72: 55143.97 | R72: 77006.8 | S72: 446856.03
A73: DIRECCION ADMINISTRATIVA
A74: 51 | B74: KIRSYS YESENIA SALCIE DE LOS SANTOS | C74: Femenino | D74: DIRECCION ADMINISTRATIVA | E74: SECRETARIA | F74: FIJO | G74: 70,000.00 | H74: 5,208.07 | I74: =+G74*2.87% -> 2,009.00 | J74: =G74*7.1/100 -> 4,970.00 | K74: =G74*1.15% -> 805.00 | L74: =G74*3.04% -> 2,128.00 | M74: =G74*7.09% -> 4,963.00 | N74: 1,350.12 | O74: 25.00 | Q74: =H74+I74+L74+N74+P74+O74 -> 10,720.19 | R74: =J74+K74+M74 -> 10,738.00 | S74: =G74-Q74 -> 59,279.81
A75: 52 | B75: CAROLINA FRANCIS BREA | C75: Femenino | D75: DIRECCION ADMINISTRATIVA | E75: SECRETARIA EJECUTIVA | F75: Carrera Administrativa | G75: 45,000.00 | I75: =+G75*2.87% -> 1,291.50 | J75: =G75*7.1/100 -> 3,195.00 | K75: =G75*1.15% -> 517.50 | L75: =G75*3.04% -> 1,368.00 | M75: =G75*7.09% -> 3,190.50 | N75: 2,700.24 | O75: 25.00 | P75: 3114.17 | Q75: =H75+I75+L75+N75+P75+O75 -> 8,498.91 | R75: =J75+K75+M75 -> 6,903.00 | S75: =G75-Q75 -> 36,501.09
A76: 53 | B76: MILDRED GISELA ORTIZ CONTRERAS | C76: Femenino | D76: DIRECCION ADMINISTRATIVA | E76: ENC. DEPTO. DESARROLLO INST. | F76: Carrera Administrativa | G76: 120,000.00 | H76: 16134.88 | I76: 3,444.00 | J76: 8,520.00 | K76: 1,380.00 | L76: 3,648.00 | M76: 8,508.00 | O76: 25.00 | P76: 2800.24 | Q76: 26,052.12 | R76: 18,408.00 | S76: 93,947.88
A77: 54 | B77: NIURCA JANELYS FELIZ GOMEZ | C77: Femenino | D77: DIRECCION ADMINISTRATIVA | E77: ENC. ARCHIVO CENTRAL | F77: Carrera Administrativa | G77: 50,000.00 | I77: 1,435.00 | J77: 3,550.00 | K77: 575.00 | L77: 1,520.00 | M77: 3,545.00 | O77: 25.00 | P77: 1200 | Q77: 4,180.00 | R77: 7,670.00 | S77: 45,820.00
A78: 55 | B78: REGINA ANTONIA ROSARIO ENCARNACION | C78: Femenino | D78: DIRECCION ADMINISTRATIVA | E78: AUXILIAR DE SERVICIO AL CLIENTE | F78: Carrera Administrativa | G78: 35,000.00 | I78: 1,004.50 | J78: 2,485.00 | K78: =G78*1.13% -> 395.50 | L78: 1,064.00 | M78: 2,481.50 | O78: 25.00 | P78: 4150.09 | Q78: 6,243.59 | R78: 5,362.00 | S78: 28,756.41
A79: SUB-TOTAL | G79: =SUM(G74:G78) -> 320000 | H79: 21342.95 | I79: 9184 | J79: 22720 | K79: 3673 | L79: 9728 | M79: 22688 | N79: 4050.36 | O79: 125 | P79: 11264.5 | Q79: 55694.81 | R79: 49081 | S79: 264305.19
A80: SERVICIO AL CLIENTE
A81: 56 | B81: JUSTINA PINALES TRINIDAD | C81: Femenino | D81: SERVICIO AL CLIENTE | E81: ENCARGADO | F81: Carrera Administrativa | G81: 55,000.00 | I81: =G81*2.87/100 -> 1,578.50 | J81: =G81*7.1/100 -> 3,905.00 | K81: =G81*1.15% -> 632.50 | L81: =G81*3.04% -> 1,672.00 | M81: =G81*7.09% -> 3,899.50 | N81: 1,350.12 | O81: 25.00 | P81: 3,200.00 | Q81: =H81+I81+L81+N81+P81+O81 -> 7,825.62 | R81: =J81+K81+M81 -> 8,437.00 | S81: =G81-Q81 -> 47,174.38
A82: 57 | B82: NICOLE SANTOS DE LEON | C82: Femenino | D82: SERVICIO AL CLIENTE | E82: RECEPCIONISTA | F82: FIJO | G82: 32,000.00 | I82: =G82*2.87/100 -> 918.40 | J82: =G82*7.1/100 -> 2,272.00 | K82: =G82*1.15% -> 368.00 | L82: =G82*3.04% -> 972.80 | M82: =G82*7.09% -> 2,268.80 | O82: 25.00 | P82: 1,500.00 | Q82: =H82+I82+L82+N82+P82+O82 -> 3,416.20 | R82: =J82+K82+M82 -> 4,908.80 | S82: =G82-Q82 -> 28,583.80
A83: 58 | B83: OLGA LIDIA DE LA CRUZ LEONCIO | C83: Femenino | D83: SERVICIO AL CLIENTE | E83: RECEPCIONISTA | F83: FIJO | G83: 20,000.00 | I83: =G83*2.87/100 -> 574.00 | J83: =G83*7.1/100 -> 1,420.00 | K83: =G83*1.15% -> 230.00 | L83: =G83*3.04% -> 608.00 | M83: =G83*7.09% -> 1,418.00 | O83: 25.00 | Q83: =H83+I83+L83+N83+P83+O83 -> 1,207.00 | R83: =J83+K83+M83 -> 3,068.00 | S83: 18,793.00
A84: SUB-TOTAL | G84: =SUM(G81:G83) -> 107000 | H84: =SUM(H81:H83) -> 0 | I84: 3070.9 | J84: 7597 | K84: 1230.5 | L84: 3252.8 | M84: 7586.3 | N84: 1350.12 | O84: 75 | P84: 4700 | Q84: 12448.82 | R84: 16413.8 | S84: 94551.18
A85: DEPARTAMENTO DE METROLOGIA LEGAL
A86: 59 | B86: ALTAGRACIA LISANET RODRIGUEZ PUJOLS | C86: Femenino | D86: DEPARTAMENTO METROLOGIA LEGAL | E86: SECRETARIA | F86: FIJO | G86: 65,000.00 | H86: 442.65 | I86: =G86*2.87/100 -> 1,865.50 | J86: =G86*7.1/100 -> 4,615.00 | K86: =G86*1.15% -> 747.50 | L86: =+G86*3.04% -> 1,976.00 | M86: =+G86*7.09% -> 4,608.50 | O86: 25.00 | P86: 9,546.43 | Q86: =H86+I86+L86+N86+P86+O86 -> 13,855.58 | R86: =J86+K86+M86+P86 -> 19,517.43 | S86: =G86-Q86 -> 51,144.42
A87: 60 | B87: ELSA ANTONIA PINEDO ESPINAL | C87: Femenino | D87: DEPARTAMENTO METROLOGIA LEGAL | E87: AUXILIAR ADMINISTRATIVA II | F87: Carrera Administrativa | G87: 32,000.00 | I87: 918.40 | J87: 2,272.00 | K87: =G87*1.15% -> 368.00 | L87: =+G87*3.04% -> 972.80 | M87: 2,268.80 | O87: 25.00 | P87: 3,129.52 | Q87: =H87+I87+L87+N87+P87+O87 -> 5,045.72 | R87: =J87+K87+M87+P87 -> 8,038.32 | S87: =G87-Q87 -> 26,954.28
A88: 61 | B88: KATHERINE MASSIEL DILONE JIMENEZ | C88: Femenino | D88: DEPARTAMENTO METROLOGIA LEGAL | E88: AUXILIAR ADMINISTRATIVA | F88: FIJO | G88: 32,000.00 | I88: =G88*2.87/100 -> 918.40 | J88: =G88*7.1/100 -> 2,272.00 | K88: =G88*1.15% -> 368.00 | L88: =+G88*3.04% -> 972.80 | M88: =+G88*7.09% -> 2,268.80 | O88: 25.00 | Q88: =H88+I88+L88+N88+P88+O88 -> 1,916.20 | R88: =J88+K88+M88+P88 -> 4,908.80 | S88: =G88-Q88 -> 30,083.80
A89: 62 | B89: FRANK LUIS LORA GARCIA | C89: Masculino | D89: DEPARTAMENTO METROLOGIA LEGAL | E89: TECNICO I DE VERIFICACION METROLOGICA | F89: FIJO | G89: 44,000.00 | I89: 1,262.80 | J89: 3,124.00 | K89: 506.00 | L89: 1,337.60 | M89: 3,119.60 | O89: 25.00 | P89: 0.00 | Q89: 2,625.40 | R89: 6,749.60 | S89: 41,374.60
A90: 63 | B90: FULGENCIO BATISTA JAQUEZ | C90: Masculino | D90: DEPARTAMENTO METROLOGIA LEGAL | E90: COORD. REG. TECNICOS METROLOGICA | F90: Carrera Administrativa | G90: 50,000.00 | I90: 1,435.00 | J90: 3,550.00 | K90: 575.00 | L90: 1,520.00 | M90: 3,545.00 | O90: 25.00 | P90: 200.00 | Q90: 3,180.00 | R90: 7,870.00 | S90: 46,820.00
A91: 64 | B91: HAYGAS KALUSTIAN KRIKRORIAN | C91: Masculino | D91: DEPARTAMENTO METROLOGIA LEGAL | E91: ASESOR | F91: FIJO | G91: 80,000.00 | H91: 10169.74 | I91: 2,296.00 | J91: 5,680.00 | K91: 920.00 | L91: 2,432.00 | M91: 5,672.00 | O91: 25.00 | P91: 0.00 | Q91: 14,922.74 | R91: 12,272.00 | S91: 65,077.26
A92: 65 | B92: JOSE ANDRES DE LA ROSA BAEZ | C92: Masculino | D92: DEPARTAMENTO METROLOGIA LEGAL | E92: ENC. UNID. TEC. VERIF. LAB. DE | F92: Carrera Administrativa | G92: 65,000.00 | I92: 1,865.50 | J92: 4,615.00 | K92: 747.50 | L92: 1,976.00 | M92: 4,608.50 | O92: 25.00 | P92: 100.00 | Q92: 3,966.50 | R92: 10,071.00 | S92: 61,033.50
A93: 66 | B93: JOSE ARTURO DIAZ MATOS | C93: Masculino | D93: DEPARTAMENTO METROLOGIA LEGAL | E93: ENCARGADO DE METROLOGIA | F93: Carrera Administrativa | G93: 70,000.00 | H93: 5368.45 | I93: 2,009.00 | J93: =G93*7.1/100 -> 4,970.00 | K93: 805.00 | L93: 2,128.00 | M93: 4,963.00 | O93: 25.00 | P93: 100.00 | Q93: 9,630.45 | R93: 10,838.00 | S93: 60,369.55
A94: 67 | B94: JOSE DEL CARMEN VALENZUELA RAMIREZ | C94: Masculino | D94: DEPARTAMENTO METROLOGIA LEGAL | E94: COORD. REG. TECNICOS METROLOGICA | F94: FIJO | G94: 50,000.00 | H94: 1854 | I94: 1,435.00 | J94: =G94*7.1/100 -> 3,550.00 | K94: 575.00 | L94: 1,520.00 | M94: 3,545.00 | O94: 25.00 | P94: 1,320.00 | Q94: 6,154.00 | R94: 8,990.00 | S94: 43,846.00
A95: 68 | B95: JUAN PUENTE DE LOS SANTOS | C95: Masculino | D95: DEPARTAMENTO METROLOGIA LEGAL | E95: TECNICO I DE VERIFICACION METROLOGICA | F95: FIJO | G95: 45,000.00 | H95: 945.81 | I95: 1,291.50 | J95: 3,195.00 | K95: 517.50 | L95: 1,368.00 | M95: 3,190.50 | N95: 1,350.12 | O95: 25.00 | P95: 200.00 | Q95: 5,180.43 | R95: 7,103.00 | S95: 39,819.57
A96: 69 | B96: LOREILY SUSANA PUELLO PEREZ | C96: Femenino | D96: DEPARTAMENTO METROLOGIA LEGAL | E96: ENC. DIVISION DE VOLUMEN | F96: Carrera Administrativa | G96: 50,000.00 | I96: 1,435.00 | J96: 3,550.00 | K96: 575.00 | L96: 1,520.00 | M96: 3,545.00 | O96: 25.00 | P96: 100.00 | Q96: 3,080.00 | R96: 7,770.00 | S96: 46,920.00
A97: 70 | B97: NELSON ANTONIO SEGURA PEGUERO | C97: Masculino | D97: DEPARTAMENTO METROLOGIA LEGAL | E97: TECNICO II DE VERIFICACION METROLOGICA | F97: Carrera Administrativa | G97: 40,000.00 | I97: 1,148.00 | J97: 2,840.00 | K97: 460.00 | L97: 1,216.00 | M97: 2,836.00 | O97: 25.00 | P97: 200.00 | Q97: 2,589.00 | R97: 6,336.00 | S97: 37,411.00
A98: 71 | B98: RODRIGO DE LOS SANTOS SUAREZ | C98: Masculino | D98: DEPARTAMENTO METROLOGIA LEGAL | E98: ENC. UNID. TEC. VER. INT. PESA | F98: Carrera Administrativa | G98: 55,000.00 | H98: 2559.68 | I98: 1,578.50 | J98: 3,905.00 | K98: 632.50 | L98: 1,672.00 | M98: 3,899.50 | O98: 25.00 | P98: 200.00 | Q98: 6,035.18 | R98: 8,637.00 | S98: 48,964.82
A99: 72 | B99: GENESIS SANCHEZ GARCIA | C99: Femenino | D99: DEPARTAMENTO METROLOGIA LEGAL | E99: MENSAJERO (A) INTERNO (A) | F99: FIJO | G99: 25,000.00 | I99: 717.50 | J99: 1,775.00 | K99: 287.50 | L99: 760.00 | M99: 1,772.50 | O99: 25.00 | Q99: =H99+I99+L99+N99+P99+O99 -> 1,502.50 | R99: =J99+K99+M99+P99 -> 3,835.00 | S99: =G99-Q99 -> 23,497.50
A100: 73 | B100: YIA DIAZ | C100: Femenino | D100: DEPARTAMENTO METROLOGIA LEGAL | E100: SECRETARIA | F100: FIJO | G100: 32,000.00 | I100: 918.40 | J100: 2,272.00 | K100: 368.00 | L100: 972.80 | M100: 2,268.80 | O100: 25.00 | P100: 1,445.00 | Q100: =H100+I100+L100+N100+P100+O100 -> 3,361.20 | R100: =J100+K100+M100+P100 -> 6,353.80 | S100: 28,638.80
A101: 74 | B101: KARINA ALEXANDRA BAEZ BLOISE | C101: Femenino | D101: DEPARTAMENTO METROLOGIA LEGAL | E101: FOTOCOPIADOR | F101: FIJO | G101: 10,000.00 | I101: 287.00 | J101: 710.00 | K101: 115.00 | L101: 304.00 | M101: 709.00 | O101: 25.00 | Q101: 616.00 | R101: 1,534.00 | S101: 9,384.00
A102: SUB-TOTAL | G102: =SUM(G86:G101) -> 745000 | H102: =SUM(H86:H101) -> 21340.33 | I102: 21381.5 | J102: 52895 | K102: 8567.5 | L102: 22648 | M102: 52820.5 | N102: 1350.12 | O102: 400 | P102: 16540.95 | Q102: 83660.9 | R102: 130823.95 | S102: 661339.1
A103: DIRECCION DE TECNOLOGIAS DE LA INFORMACION Y COMUNICACION
A104: 75 | B104: LUIS VLADIMIR SOTO MIRAMBEAUX | C104: Masculino | D104: DIRECCION DE TECNOLOGIAS DE LA INFORMACION Y COMUNICACION | E104: ENC. TECNOLOGIA DE LA INF. | F104: FIJO | G104: 130,000.00 | H104: 19,162.19 | I104: =+G104*2.87% -> 3,731.00 | J104: =+G104*7.1% -> 9,230.00 | K104: =G104*1.15% -> 1,495.00 | L104: =G104*3.04% -> 3,952.00 | M104: =G104*7.09% -> 9,217.00 | O104: 25.00 | Q104: =H104+I104+L104+N104+P104+O104 -> 26,870.19 | R104: =J104+K104+M104 -> 19,942.00 | S104: =G104-Q104 -> 103,129.81
A105: 76 | B105: GEOVANNY EMMANUEL SANCHEZ | C105: Masculino | D105: DIRECCION DE TECNOLOGIAS DE LA INFORMACION Y COMUNICACION | E105: SOPORTE TECNICO | F105: FIJO | G105: 60,000.00 | H105: 2,549.78 | I105: =+G105*2.87% -> 1,722.00 | J105: =+G105*7.1% -> 4,260.00 | K105: =G105*1.15% -> 690.00 | L105: =G105*3.04% -> 1,824.00 | M105: =G105*3.04% -> 1,824.00 | O105: 25.00 | Q105: =H105+I105+L105+N105+P105+O105 -> 6,120.78 | R105: =J105+K105+M105 -> 6,774.00 | S105: =G105-Q105 -> 53,879.22
A106: 77 | B106: CASILDA EBYMAR MERCEDES HEREDIA | C106: Femenino | D106: DIRECCION DE TECNOLOGIAS DE LA INFORMACION Y COMUNICACION | E106: RESPONSABLE ACCESO A LA INFORMACION | F106: Carrera Administrativa | G106: 70,000.00 | H106: 428.74 | I106: =+G106*2.87% -> 2,009.00 | J106: =+G106*7.1% -> 4,970.00 | K106: 805.00 | L106: =G106*3.04% -> 2,128.00 | M106: =G106*3.04% -> 2,128.00 | O106: 25.00 | P106: 3,000.00 | Q106: 7,590.74 | R106: =J106+K106+M106 -> 7,903.00 | S106: 62,409.26
A107: 78 | B107: ELIZABETH VALDEZ | C107: Femenino | D107: DIRECCION DE TECNOLOGIAS DE LA INFORMACION Y COMUNICACION | E107: SECRETARIA | F107: Carrera Administrativa | G107: 38,000.00 | H107: 160.38 | I107: =+G107*2.87% -> 1,090.60 | J107: =+G107*7.1% -> 2,698.00 | K107: 437.00 | L107: =G107*3.04% -> 1,155.20 | M107: =G107*3.04% -> 1,155.20 | O107: 25.00 | P107: 13,277.77 | Q107: 15,708.95 | R107: =J107+K107+M107 -> 4,290.20 | S107: 22,291.05
A108: 79 | B108: MIGUEL SANTANA MORALES | C108: Masculino | D108: DIRECCION DE TECNOLOGIAS DE LA INFORMACION Y COMUNICACION | E108: ENC. SECC. ADM. SERV. TIC | F108: Carrera Administrativa | G108: 80,000.00 | H108: 7400.94 | I108: 2,296.00 | J108: 5,680.00 | K108: 920.00 | L108: 2,432.00 | M108: 2,432.00 | O108: 25.00 | P108: 9,172.55 | Q108: 21,326.49 | R108: 9,032.00 | S108: 58,673.51
A109: 80 | B109: DAVID EDUARDO SOUFFRONT PICHARDO | C109: Masculino | D109: DIRECCION DE TECNOLOGIAS DE LA INFORMACION Y COMUNICACION | E109: GESTOR DE REDES SOCIALES | F109: FIJO | G109: 40,000.00 | H109: 442.65 | I109: 1,148.00 | J109: 2,840.00 | K109: 460.00 | L109: 1,216.00 | M109: 1,216.00 | O109: 25.00 | Q109: =H109+I109+L109+N109+P109+O109 -> 2,831.65 | R109: =J109+K109+M109 -> 4,516.00 | S109: =G109-Q109 -> 37,168.35
A110: 81 | B110: ANDERSON HERNANDEZ | C110: Masculino | D110: DIRECCION DE TECNOLOGIAS DE LA INFORMACION Y COMUNICACION | E110: SOPORTE TECNICO | F110: FIJO | G110: 45,000.00 | I110: 1,291.50 | J110: 3,195.00 | K110: 517.50 | L110: 1,368.00 | M110: 1,368.00 | N110: 1,350.12 | O110: 25.00 | P110: 970.00 | Q110: =H110+I110+L110+N110+P110+O110 -> 5,004.62 | R110: =J110+K110+M110 -> 5,080.50 | S110: 39,995.38
A111: 82 | B111: AIDA CAROLINA TAVAREZ RODRIGUEZ | C111: Femenino | D111: DIRECCION DE TECNOLOGIAS DE LA INFORMACION Y COMUNICACION | E111: AUXILIAR | F111: FIJO | G111: 40,000.00 | H111: 442.65 | I111: 1,148.00 | J111: 2,840.00 | K111: 460.00 | L111: 1,216.00 | M111: 1,216.00 | O111: 25.00 | P111: 1,100.00 | Q111: =H111+I111+L111+N111+P111+O111 -> 3,931.65 | R111: =J111+K111+M111 -> 4,516.00 | S111: 36,068.35
A112: 83 | B112: ISMAEL RODRIGUEZ RAMIREZ | C112: Masculino | D112: DIRECCION DE TECNOLOGIAS DE LA INFORMACION Y COMUNICACION | E112: AUXILIAR ADMINISTRATIVO | F112: FIJO | G112: 32,000.00 | I112: 918.40 | J112: 2,272.00 | K112: 368.00 | L112: 972.80 | M112: 972.80 | O112: 25.00 | Q112: 1,916.20 | R112: 3,612.80 | S112: 30,083.80
E113: SUB-TOTAL | G113: =SUM(G104:G112) -> 535,000.00 | H113: =SUM(H104:H112) -> 30,587.33 | I113: 15,354.50 | J113: 37,985.00 | K113: 6,152.50 | L113: 16,264.00 | M113: 21,529.00 | N113: =SUM(N104:N112) -> 1350.12 | O113: =SUM(O104:O112) -> 225 | P113: 27520.32 | Q113: 91301.27 | R113: 65666.5 | S113: 443698.73
A114: DIRECCION EVALUACION DE LA CONFORMIDAD
A115: 84 | B115: NOEMI FRIAS DE LOS SANTOS | C115: Femenino | D115: DIRECCION EVALUACION DE LA CONFORMIDAD | E115: COORD. ASEG. DE CALIDAD | F115: FIJO | G115: 100,000.00 | H115: 12,105.44 | I115: =+G115*2.87% -> 2,870.00 | J115: =+G115*7.1% -> 7,100.00 | K115: =G115*1.15% -> 1,150.00 | L115: =G115*3.04% -> 3,040.00 | M115: =G115*7.09% -> 7,090.00 | O115: 25.00 | P115: 100.00 | Q115: =H115+I115+L115+N115+P115+O115 -> 18,140.44 | R115: =J115+K115+M115 -> 15,340.00 | S115: =G115-Q115 -> 81,859.56
A116: 85 | B116: ERICK BREA HERNANDEZ | C116: Masculino | D116: DIRECCION EVALUACION DE LA CONFORMIDAD | E116: ANALISTA | F116: FIJO | G116: 75,000.00 | H116: 5,152.65 | I116: =+G116*2.87% -> 2,152.50 | J116: =+G116*7.1% -> 5,325.00 | K116: =G116*1.15% -> 862.50 | L116: =G116*3.04% -> 2,280.00 | M116: =G116*7.09% -> 5,317.50 | O116: 25.00 | Q116: =H116+I116+L116+N116+P116+O116 -> 9,610.15 | R116: =J116+K116+M116 -> 11,505.00 | S116: =G116-Q116 -> 65,389.85
A117: 86 | B117: KARILYN RODRIGUEZ FELIX | C117: Femenino | D117: DIRECCION EVALUACION DE LA CONFORMIDAD | E117: DIRECTORA EVALUACIO DE LA CONFORMIDAD | F117: Carrera Administrativa | G117: 130,000.00 | H117: 19,162.19 | I117: 3,731.00 | J117: 9,230.00 | K117: 1,495.00 | L117: 3,952.00 | M117: 9,217.00 | O117: 25.00 | Q117: 26,870.19 | R117: 19,942.00 | S117: 103,129.81
A118: 87 | B118: SALIDAY DE LOS SANTOS ULERIO | C118: Femenino | D118: DIRECCION EVALUACION DE LA CONFORMIDAD | E118: SECRETARIA EJECUTIVA | F118: FIJO | G118: 47,000.00 | I118: 1,348.90 | J118: 3,337.00 | K118: 540.50 | L118: 1,428.80 | M118: 3,332.30 | O118: 25.00 | P118: 1,320.00 | Q118: 4,122.70 | R118: 7,209.80 | S118: 42,877.30
A119: 88 | B119: WENDY MILDALIS LIRIANO MORENO | C119: Femenino | D119: DIRECCION EVALUACION DE LA CONFORMIDAD | E119: ANALISTA DE EVALUACION DE LA | F119: Carrera Administrativa | G119: 48,000.00 | I119: 1,377.60 | J119: 3,408.00 | K119: 552.00 | L119: 1,459.20 | M119: 3,403.20 | O119: 25.00 | P119: 200.00 | Q119: 3,061.80 | R119: =J119+K119+M119 -> 7,363.20 | S119: 44,938.20
A120: 89 | B120: SIXTA PEREZ NIVAR | C120: Femenino | D120: DIRECCION EVALUACION DE LA CONFORMIDAD | E120: AUXILIAR | F120: FIJO | G120: 45,000.00 | H120: 1,148.32 | I120: =+G120*2.87% -> 1,291.50 | J120: =+G120*7.1% -> 3,195.00 | K120: =G120*1.15% -> 517.50 | L120: =G120*3.04% -> 1,368.00 | M120: =G120*7.09% -> 3,190.50 | O120: 25.00 | Q120: =H120+I120+L120+N120+P120+O120 -> 3,832.82 | R120: =J120+K120+M120 -> 6,903.00 | S120: 41,167.18
A121: 90 | B121: GILBERT JOSE LOPEZ LARA | C121: Masculino | D121: DIRECCION EVALUACION DE LA CONFORMIDAD | E121: AUXILIAR | F121: FIJO | G121: 35,000.00 | I121: 1,004.50 | J121: 2,485.00 | K121: 402.50 | L121: 1,064.00 | M121: 2,481.50 | O121: 25.00 | Q121: 2,093.50 | R121: 5,369.00 | S121: 32,906.50
A122: 91 | B122: WILTON ARIEL CUEVAS MENDEZ | C122: Masculino | D122: DIRECCION EVALUACION DE LA CONFORMIDAD | E122: ANALISTA DE INSPECCION | F122: FIJO | G122: 45,000.00 | I122: 1,291.50 | J122: 3,195.00 | K122: 517.50 | L122: 1,368.00 | M122: 3,190.50 | O122: 25.00 | Q122: 2,684.50 | R122: 6,903.00 | S122: 42,315.50
A123: 92 | B123: CESAR GREGORY MATOS ROMERO | C123: Masculino | D123: DIRECCION EVALUACION DE LA CONFORMIDAD | E123: TECNICO EN ADUANA | F123: FIJO | G123: 43,000.00 | I123: 1,234.10 | J123: 3,053.00 | K123: 494.50 | L123: 1,307.20 | M123: 3,048.70 | O123: 25.00 | Q123: 2,566.30 | R123: 6,596.20 | S123: 40,433.70
A124: 93 | B124: MARVIN RAFAEL MIESES SOTO | C124: Masculino | D124: DIRECCION EVALUACION DE LA CONFORMIDAD | E124: TECNICO EN ADUANA | F124: FIJO | G124: 38,500.00 | I124: 1,104.95 | J124: 2,733.50 | K124: 442.75 | L124: 1,170.40 | M124: 2,729.65 | O124: 25.00 | Q124: 2,300.35 | R124: 5,905.90 | S124: 36,199.65
A125: 94 | B125: WELLINGTON TAVERAS SALAZAR | C125: Masculino | D125: DIRECCION EVALUACION DE LA CONFORMIDAD | E125: TECNICO | F125: FIJO | G125: 38,500.00 | H125: 230.95 | I125: 1,104.95 | J125: 2,733.50 | K125: 442.75 | L125: 1,170.40 | M125: 2,729.65 | O125: 25.00 | P125: 13,483.30 | Q125: 16,014.60 | R125: 5,905.90 | S125: 22,485.40
A126: 95 | B126: ROSSELINA MINAYA RIVERA | C126: Femenino | D126: DIRECCION EVALUACION DE LA CONFORMIDAD | E126: SECRETARIA EJECUTIVA | F126: FIJO | G126: 45,000.00 | I126: 1,291.50 | J126: 3,195.00 | K126: 517.50 | L126: 1,368.00 | M126: 3,190.50 | O126: 25.00 | Q126: 2,684.50 | R126: 6,903.00 | S126: 42,315.50
A127: 96 | B127: PAMELA ANDREINA DEL ROSARIO OVALLES | C127: Femenino | D127: DIRECCION EVALUACION DE LA CONFORMIDAD | E127: SECRETARIA | F127: FIJO | G127: 48,000.00 | H127: 1,571.73 | I127: 1,377.60 | J127: 3,408.00 | K127: 552.00 | L127: 1,459.20 | M127: 3,403.20 | O127: 25.00 | P127: 1,320.00 | Q127: 5,753.53 | R127: 7,363.20 | S127: 42,246.47
A128: 97 | B128: KARLA AIME FELIZ BAEZ | C128: Femenino | D128: DIRECCION EVALUACION DE LA CONFORMIDAD | E128: SECRETARIA | F128: FIJO | G128: 32,000.00 | I128: 918.40 | J128: 2,272.00 | K128: 368.00 | L128: 972.80 | M128: 2,268.80 | O128: 25.00 | P128: 1,320.00 | Q128: 3,236.20 | R128: 4,908.80 | S128: 28,763.80
A129: 98 | B129: WILSON EDUARDO TAVAREZ | C129: Masculino | D129: DIRECCION EVALUACION DE LA CONFORMIDAD | E129: ANALISTA | F129: FIJO | G129: 48,000.00 | H129: 1,571.73 | I129: 1,377.60 | J129: 3,408.00 | K129: 552.00 | L129: 1,459.20 | M129: 3,403.20 | O129: 25.00 | P129: 100.00 | Q129: 4,533.53 | R129: 7,363.20 | S129: 43,466.47
A130: 99 | B130: LESLIE EUGENI JIMENEZ CASTRO | C130: Femenino | D130: DIRECCION EVALUACION DE LA CONFORMIDAD | E130: SECRETARIA | F130: FIJO | G130: 32,000.00 | I130: =+G130*2.87% -> 918.40 | J130: =+G130*7.1% -> 2,272.00 | K130: =G130*1.15% -> 368.00 | L130: =G130*3.04% -> 972.80 | M130: =G130*7.09% -> 2,268.80 | O130: 25.00 | Q130: =H130+I130+L130+N130+P130+O130 -> 1,916.20 | R130: =J130+K130+M130 -> 4,908.80 | S130: 30,083.80
B131: SUB-TOTAL | G131: =SUM(G115:G130) -> 850,000.00 | H131: 40,943.01 | I131: 24,395.00 | J131: 60,350.00 | K131: 9,775.00 | L131: 25,840.00 | M131: 60,265.00 | N131: 0 | O131: 400.00 | P131: 17,843.30 | Q131: 109,421.31 | R131: 130,390.00 | S131: 740,578.69
A132: ORIENTACION Y DIVULGACION
A133: 100 | B133: ALBAIRIS ALCANTARA RODRIGUEZ | C133: Femenino | D133: ORIENTACION Y DIVULGACION | E133: ENC. SECCION DE DOC. Y NORMAS | F133: Carrera Administrativa | G133: 50,000.00 | I133: =+G133*2.87% -> 1,435.00 | J133: =+G133*7.1% -> 3,550.00 | K133: =G133*1.15% -> 575.00 | L133: =G133*3.04% -> 1,520.00 | M133: =G133*7.09% -> 3,545.00 | O133: 25.00 | P133: 10,657.33 | Q133: =H133+I133+L133+N133+P133+O133 -> 13,637.33 | R133: =J133+K133+M133 -> 7,670.00 | S133: =G133-Q133 -> 36,362.67
A134: 101 | B134: DAMARIS JOSELIN CRISPIN VALLEJO | C134: Femenino | D134: ORIENTACION Y DIVULGACION | E134: TEC. DE CAPACITACION | F134: FIJO | G134: 45,000.00 | I134: =+G134*2.87% -> 1,291.50 | J134: =+G134*7.1% -> 3,195.00 | K134: =G134*1.15% -> 517.50 | L134: =G134*3.04% -> 1,368.00 | M134: =G134*7.09% -> 3,190.50 | O134: 25.00 | P134: 35,106.92 | Q134: =H134+I134+L134+N134+P134+O134 -> 37,791.42 | R134: =J134+K134+M134 -> 6,903.00 | S134: =G134-Q134 -> 7,208.58
A135: 102 | B135: MARIEL PORTES JIMENEZ | C135: Femenino | D135: ORIENTACION Y DIVULGACION | E135: SECRETARIA | F135: FIJO | G135: 43,000.00 | I135: =+G135*2.87% -> 1,234.10 | J135: =+G135*7.1% -> 3,053.00 | K135: =G135*1.15% -> 494.50 | L135: =G135*3.04% -> 1,307.20 | M135: =G135*7.09% -> 3,048.70 | O135: 25.00 | Q135: =H135+I135+L135+N135+P135+O135 -> 2,566.30 | R135: =J135+K135+M135 -> 6,596.20 | S135: 40,433.70
A136: 103 | B136: EDUVIGIS ALTAGRACIA COLLADO RODRIGUE | C136: Femenino | D136: ORIENTACION Y DIVULGACION | E136: AUXILIAR | F136: FIJO | G136: 37,000.00 | H136: 19.25 | I136: =+G136*2.87% -> 1,061.90 | J136: =+G136*7.1% -> 2,627.00 | K136: =G136*1.15% -> 425.50 | L136: =G136*3.04% -> 1,124.80 | M136: =G136*7.09% -> 2,623.30 | O136: 25.00 | P136: 200.00 | Q136: =H136+I136+L136+N136+P136+O136 -> 2,430.95 | R136: =J136+K136+M136 -> 5,675.80 | S136: 34,569.05
B137: SUB-TOTAL | G137: =SUM(G133:G136) -> 175,000.00 | H137: =SUM(H133:H136) -> 19.25 | I137: 5,022.50 | J137: 12,425.00 | K137: 2,012.50 | L137: 5,320.00 | M137: 12,407.50 | N137: =SUM(N133:N136) -> 0 | O137: 100.00 | P137: 45,964.25 | Q137: 56,426.00 | R137: 26,845.00 | S137: 118,574.00
A138: DEPARTAMENTO DE FACTURACION Y COBROS
A139: 104 | B139: JENEYSI VIRGINIA MORONTA AQUINO | C139: Femenino | D139: FACTURACION Y COBROS | E139: CAJERA | F139: FIJO | G139: 35,000.00 | I139: =+G139*2.87% -> 1,004.50 | J139: =+G139*7.1% -> 2,485.00 | K139: =G139*1.15% -> 402.50 | L139: =G139*3.04% -> 1,064.00 | M139: =G139*7.09% -> 2,481.50 | O139: 25.00 | Q139: =H139+I139+L139+N139+P139+O139 -> 2,093.50 | R139: =J139+K139+M139 -> 5,369.00 | S139: =G139-Q139 -> 32,906.50
A140: 105 | B140: ANA IRIS MERCADO CORREA | C140: Femenino | D140: FACTURACION Y COBROS | E140: AUXILIAR ADMISTRATIVO | F140: FIJO | G140: 40,000.00 | H140: 442.65 | I140: =+G140*2.87% -> 1,148.00 | J140: =+G140*7.1% -> 2,840.00 | K140: =G140*1.15% -> 460.00 | L140: =G140*3.04% -> 1,216.00 | M140: =G140*7.09% -> 2,836.00 | O140: 25.00 | P140: 100.00 | Q140: =H140+I140+L140+N140+P140+O140 -> 2,931.65 | R140: =J140+K140+M140 -> 6,136.00 | S140: 37,068.35
A141: 106 | B141: CLAUDIA PATRICIA COLON FAUDRE | C141: Femenino | D141: FACTURACION Y COBROS | E141: ANALISTA FINANCIERO | F141: FIJO | G141: 48,000.00 | H141: 442.65 | I141: 1,377.60 | J141: 3,408.00 | K141: 552.00 | L141: 1,459.20 | M141: 3,403.20 | O141: 25.00 | Q141: 3,304.45 | R141: 7,363.20 | S141: 44,695.55
A142: 107 | B142: MIKAEL PEREZ FIGUEREO | C142: Masculino | D142: FACTURACION Y COBROS | E142: MENSAJERO EXTERNO | F142: FIJO | G142: 26,250.00 | I142: =+G142*2.87% -> 753.38 | J142: =+G142*7.1% -> 1,863.75 | K142: =G142*1.15% -> 301.88 | L142: =G142*3.04% -> 798.00 | M142: =G142*7.09% -> 1,861.13 | O142: 25.00 | P142: 500.00 | Q142: =H142+I142+L142+N142+P142+O142 -> 2,076.38 | R142: =J142+K142+M142 -> 4,026.75 | S142: 24,173.63
A143: 108 | B143: DARIELYS ALTAGRACIA QUEZADA FLORES | C143: Femenino | D143: FACTURACION Y COBROS | E143: CAJERA | F143: FIJO | G143: 25,000.00 | I143: 717.50 | J143: 1,775.00 | K143: 287.50 | L143: 760.00 | M143: 1,772.50 | O143: 25.00 | Q143: 1,502.50 | R143: 3,835.00 | S143: 23,497.50
A144: 109 | B144: MARIA GABRIELA DEL CARMEN ARIAS | C144: Femenino | D144: FACTURACION Y COBROS | E144: CAJERA | F144: FIJO | G144: 32,000.00 | I144: 918.40 | J144: 2,272.00 | K144: 368.00 | L144: 972.80 | M144: 2,268.80 | O144: 25.00 | Q144: 1,916.20 | R144: 4,908.80 | S144: 30,083.80
A145: 110 | B145: ELAINE AGUIAR ESPINAL | C145: Femenino | D145: FACTURACION Y COBROS | E145: CAJERA | F145: FIJO | G145: 32,000.00 | I145: 918.40 | J145: 2,272.00 | K145: 368.00 | L145: 972.80 | M145: 2,268.80 | O145: 25.00 | Q145: 1,916.20 | R145: 4,908.80 | S145: 30,083.80
B146: SUB-TOTAL | G146: =SUM(G139:G145) -> 238,250.00 | H146: 885.30 | I146: 6,837.78 | J146: 16,915.75 | K146: 2,739.88 | L146: 7,242.80 | M146: 16,891.93 | N146: 0 | O146: 175 | P146: 600 | Q146: 15740.875 | R146: 36547.55 | S146: 222509.125
A147: DIRECCION DE NORMALIZACION
A148: 111 | B148: ANGELA MARIA URBAEZ SANTANA | C148: Femenino | D148: DIRECCION DE NORMALIZACION | E148: ENC DEP NORMAS DE ALIM Y SALUD | F148: Carrera Administrativa | G148: 80,000.00 | H148: 7,400.94 | I148: =+G148*2.87% -> 2,296.00 | J148: =+G148*7.1% -> 5,680.00 | K148: =G148*1.15% -> 920.00 | L148: =G148*3.04% -> 2,432.00 | M148: =G148*7.09% -> 5,672.00 | O148: 25.00 | P148: 1,200.00 | Q148: =H148+I148+L148+N148+P148+O148 -> 13,353.94 | R148: =J148+K148+M148 -> 12,272.00 | S148: =G148-Q148 -> 66,646.06
A149: 112 | B149: BERNARDO VIDAL PERALTA | C149: Masculino | D149: DIRECCION DE NORMALIZACION | E149: DIRECTOR DE NORMALIZACION | F149: Carrera Administrativa | G149: 130,000.00 | H149: 18,824.66 | I149: =+G149*2.87% -> 3,731.00 | J149: =+G149*7.1% -> 9,230.00 | K149: =G149*1.15% -> 1,495.00 | L149: =G149*3.04% -> 3,952.00 | M149: =G149*7.09% -> 9,217.00 | N149: 1,350.12 | O149: 25.00 | P149: 100.00 | Q149: =H149+I149+L149+N149+P149+O149 -> 27,982.78 | R149: =J149+K149+M149 -> 19,942.00 | S149: =G149-Q149 -> 102,017.22
A150: 113 | B150: CARMEN JOSEFINA BRITO DE VILLAMAN | C150: Femenino | D150: DIRECCION DE NORMALIZACION | E150: ANALISTA NORMALIZADOR | F150: FIJO | G150: 48,000.00 | I150: 1,377.60 | J150: 3,408.00 | K150: 552.00 | L150: 1,459.20 | M150: 3,403.20 | O150: 25.00 | P150: 5,821.24 | Q150: 8,683.04 | R150: 7,363.20 | S150: 39,316.96
A151: 114 | B151: FABIO CESAR TERRERO CABRAL | C151: Masculino | D151: DIRECCION DE NORMALIZACION | E151: ANALISTA NORMALIZADOR | F151: Carrera Administrativa | G151: 55,000.00 | H151: 1,600.59 | I151: 1,578.50 | J151: 3,905.00 | K151: 632.50 | L151: 1,672.00 | M151: 3,899.50 | O151: 25.00 | P151: 18,980.67 | Q151: 23,856.76 | R151: 8,437.00 | S151: 31,143.24
A152: 115 | B152: FREDESVINDA SELMO MORENO | C152: Femenino | D152: DIRECCION DE NORMALIZACION | E152: ANALISTA NORMALIZADOR | F152: Carrera Administrativa | G152: 48,000.00 | I152: 1,377.60 | J152: 3,408.00 | K152: 552.00 | L152: 1,459.20 | M152: 3,403.20 | O152: 25.00 | P152: 700.00 | Q152: 3,561.80 | R152: 7,363.20 | S152: 44,438.20
A153: 116 | B153: INDIRA DIAZ LORENZO | C153: Femenino | D153: DIRECCION DE NORMALIZACION | E153: ANALISTA NORMALIZADOR | F153: FIJO | G153: 48,000.00 | I153: 1,377.60 | J153: 3,408.00 | K153: 552.00 | L153: 1,459.20 | M153: 3,403.20 | N153: 1,350.12 | O153: 25.00 | P153: 3,700.00 | Q153: 7,911.92 | R153: 7,363.20 | S153: 40,088.08
A154: 117 | B154: JOSE GUARINO CONTRERAS | C154: Masculino | D154: DIRECCION DE NORMALIZACION | E154: ANALISTA NORMALIZADOR | F154: Carrera Administrativa | G154: 48,000.00 | I154: 1,377.60 | J154: 3,408.00 | K154: 552.00 | L154: 1,459.20 | M154: 3,403.20 | O154: 25.00 | P154: 6,150.55 | Q154: 9,012.35 | R154: 7,363.20 | S154: 38,987.65
A155: 118 | B155: JULIA RODRIGUEZ MORA | C155: Femenino | D155: DIRECCION DE NORMALIZACION | E155: ENC. DEPTO. NORMAS DE SERVICIO | F155: FIJO | G155: 80,000.00 | H155: 6,725.88 | I155: 2,296.00 | J155: 5,680.00 | K155: 920.00 | L155: 2,432.00 | M155: 5,672.00 | N155: 2,700.24 | O155: 25.00 | P155: 11,306.64 | Q155: 25,485.76 | R155: 12,272.00 | S155: 54,514.24
A156: 119 | B156: MARITZA DEL CARMEN FONDEUR RODRIGUEZ | C156: Femenino | D156: DIRECCION DE NORMALIZACION | E156: SECRETARIA | F156: Carrera Administrativa | G156: 38,000.00 | I156: 1,090.60 | J156: 2,698.00 | K156: 437.00 | L156: 1,155.20 | M156: 2,694.20 | N156: 1,350.12 | O156: 25.00 | P156: 1,635.00 | Q156: 5,255.92 | R156: 5,829.20 | S156: 32,744.08
A157: 120 | B157: BLANCA ORQUIDEA CUSTODIO | C157: Femenino | D157: DIRECCION DE NORMALIZACION | E157: SECRETARIA | F157: FIJO | G157: 31,500.00 | I157: 904.05 | J157: 2,236.50 | K157: 362.25 | L157: 957.60 | M157: 2,233.35 | O157: 25.00 | Q157: =H157+I157+L157+N157+P157+O157 -> 1,886.65 | R157: =J157+K157+M157 -> 4,832.10 | S157: 29,613.35
A158: 121 | B158: MERCEDES SUERO CASILLA | C158: Femenino | D158: DIRECCION DE NORMALIZACION | E158: ENC. DEP. NORM. D ING D CIENC. | F158: Carrera Administrativa | G158: 80,000.00 | H158: 3,878.14 | I158: =+G158*2.87% -> 2,296.00 | J158: =+G158*7.1% -> 5,680.00 | K158: 920.00 | L158: =G158*3.04% -> 2,432.00 | M158: =G158*7.09% -> 5,672.00 | N158: 1,350.12 | O158: 25.00 | P158: 13,806.64 | Q158: 23,787.90 | R158: =J158+K158+M158 -> 12,272.00 | S158: 56,212.10
A159: 122 | B159: MILAGROS ALTAGRACIA POZO ALMONTE | C159: Femenino | D159: DIRECCION DE NORMALIZACION | E159: CORRECTORA DE ESTILO | F159: Carrera Administrativa | G159: 48,500.00 | H159: 1,642.30 | I159: 1,391.95 | J159: 3,443.50 | K159: 557.75 | L159: 1,474.40 | M159: 3,438.65 | O159: 25.00 | P159: 5,070.00 | Q159: 9,603.65 | R159: 7,439.90 | S159: 38,896.35
A160: 123 | B160: MODESTA BIENVENIDA ACOSTA MATOS | C160: Femenino | D160: DIRECCION DE NORMALIZACION | E160: ANALISTA NORMALIZADOR | F160: FIJO | G160: 48,000.00 | I160: 1,377.60 | J160: 3,408.00 | K160: 552.00 | L160: 1,459.20 | M160: 3,403.20 | O160: 25.00 | P160: 700.00 | Q160: 3,561.80 | R160: 7,363.20 | S160: 44,438.20
A161: 124 | B161: NANCY ESPINO DE LA CRUZ | C161: Femenino | D161: DIRECCION DE NORMALIZACION | E161: SECRETARIA EJECUTIVA | F161: FIJO | G161: 45,000.00 | I161: 1,291.50 | J161: 3,195.00 | K161: 517.50 | L161: 1,368.00 | M161: 3,190.50 | O161: 25.00 | P161: 3,135.00 | Q161: 5,819.50 | R161: 6,903.00 | S161: 39,180.50
A162: 125 | B162: PUBLIO BASILIO CAMILO LOPEZ | C162: Masculino | D162: DIRECCION DE NORMALIZACION | E162: COORDINADOR DE REGLAMENTACION | F162: FIJO | G162: 80,000.00 | H162: 7,400.94 | I162: 2,296.00 | J162: 5,680.00 | K162: 920.00 | L162: 2,432.00 | M162: 5,672.00 | O162: 25.00 | P162: 200.00 | Q162: 12,353.94 | R162: 12,272.00 | S162: 67,646.06
A163: 126 | B163: ROSA EUFEMIA ASENCIO BELTRE | C163: Femenino | D163: DIRECCION DE NORMALIZACION | E163: ANALISTA NORMALIZADOR | F163: Carrera Administrativa | G163: 48,000.00 | I163: 1,377.60 | J163: 3,408.00 | K163: 552.00 | L163: 1,459.20 | M163: 3,403.20 | N163: 1,350.12 | O163: 25.00 | P163: 200.00 | Q163: 4,411.92 | R163: 7,363.20 | S163: 43,588.08
A164: 127 | B164: ESPERANZA GONZALEZ AMANCIO | C164: Femenino | D164: DIRECCION DE NORMALIZACION | E164: ANALISTA NORMALIZADOR | F164: FIJO | G164: 48,000.00 | H164: 623.62 | I164: =+G164*2.87% -> 1,377.60 | J164: =+G164*7.1% -> 3,408.00 | K164: =G164*1.15% -> 552.00 | L164: =G164*3.04% -> 1,459.20 | M164: =G164*7.09% -> 3,403.20 | O164: 25.00 | P164: 11,206.64 | Q164: =H164+I164+L164+N164+P164+O164 -> 14,692.06 | R164: =J164+K164+M164 -> 7,363.20 | S164: 33,307.94
A165: 128 | B165: GENI PEREZ FIGUEREO | C165: Femenino | D165: DIRECCION DE NORMALIZACION | E165: TRADUCTOR (A) | F165: FIJO | G165: 43,000.00 | H165: 866.05 | I165: 1,234.10 | J165: 3,053.00 | K165: 494.50 | L165: 1,307.20 | M165: 3,048.70 | O165: 25.00 | P165: 2,156.01 | Q165: 5,588.36 | R165: 6,596.20 | S165: 37,411.64
A166: 129 | B166: EDUARDO ARTURO LLANO | C166: Masculino | D166: DIRECCION DE NORMALIZACION | E166: TRADUCTOR (A) | F166: FIJO | G166: 40,000.00 | I166: 1,148.00 | J166: 2,840.00 | K166: 460.00 | L166: 1,216.00 | M166: 2,836.00 | O166: 25.00 | P166: 2,700.00 | Q166: 5,089.00 | R166: 6,136.00 | S166: 34,911.00
B167: SUB-TOTAL | G167: =SUM(G148:G166) -> 1,087,000.00 | H167: 48,963.12 | I167: 31,196.90 | J167: 77,177.00 | K167: 12,500.50 | L167: 33,044.80 | M167: 77,068.30 | N167: 9,450.84 | O167: 475.00 | P167: 88,768.39 | Q167: 211,899.05 | R167: 166,745.80 | S167: 875,100.95
A168: TRANSPORTACION
A169: 130 | B169: ANGELO LUIS FERNANDEZ MICHEL | C169: Masculino | D169: TRANSPORTACION | E169: CHOFER | F169: FIJO | G169: 27,000.00 | I169: =+G169*2.87% -> 774.90 | J169: =+G169*7.1% -> 1,917.00 | K169: =G169*1.15% -> 310.50 | L169: =G169*3.04% -> 820.80 | M169: =G169*7.09% -> 1,914.30 | N169: 1,350.12 | O169: 25.00 | P169: 100.00 | Q169: =H169+I169+L169+N169+P169+O169 -> 3,070.82 | R169: =J169+K169+M169 -> 4,141.80 | S169: =G169-Q169 -> 23,929.18
A170: 131 | B170: JULIA MODESTA HEREDIA PEÑA | C170: Femenino | D170: TRANSPORTACION | E170: SECRETARIA | F170: Carrera Administrativa | G170: 33,000.00 | I170: =+G170*2.87% -> 947.10 | J170: =+G170*7.1% -> 2,343.00 | K170: =G170*1.15% -> 379.50 | L170: =G170*3.04% -> 1,003.20 | M170: =G170*7.09% -> 2,339.70 | N170: 1,350.12 | O170: 25.00 | P170: 1,970.00 | Q170: =H170+I170+L170+N170+P170+O170 -> 5,295.42 | R170: =J170+K170+M170 -> 5,062.20 | S170: =G170-Q170 -> 27,704.58
A171: 132 | B171: MIGUEL MUÑOZ RAMOS | C171: Masculino | D171: TRANSPORTACION | E171: CHOFER | F171: FIJO | G171: 28,250.00 | I171: =+G171*2.87% -> 810.78 | J171: =+G171*7.1% -> 2,005.75 | K171: 324.88 | L171: =G171*3.04% -> 858.80 | M171: =G171*7.09% -> 2,002.93 | O171: 25.00 | P171: 1,200.00 | Q171: 2,894.58 | R171: =J171+K171+M171 -> 4,333.55 | S171: 25,355.43
A172: 133 | B172: YONATAN ZAPATA ROSA | C172: Masculino | D172: TRANSPORTACION | E172: CHOFER | F172: FIJO | G172: 28,250.00 | I172: 810.78 | J172: 2,005.75 | K172: 324.88 | L172: 858.80 | M172: 2,002.93 | O172: 25.00 | P172: 435.00 | Q172: 2,129.58 | R172: 4,333.55 | S172: 26,120.43
A173: 134 | B173: LEONARDO DIAZ ROSARIO | C173: Masculino | D173: TRANSPORTACION | E173: CHOFER | F173: FIJO | G173: 24,000.00 | I173: =+G173*2.87% -> 688.80 | J173: =+G173*7.1% -> 1,704.00 | K173: =G173*1.15% -> 276.00 | L173: =G173*3.04% -> 729.60 | M173: =G173*7.09% -> 1,701.60 | O173: 25.00 | P173: 2,847.19 | Q173: =H173+I173+L173+N173+P173+O173 -> 4,290.59 | R173: =J173+K173+M173 -> 3,681.60 | S173: 19,709.41
A174: 135 | B174: JUDY CASTRY JAVIER ENCARNACION | C174: Femenino | D174: TRANSPORTACION | E174: SECRETARIA | F174: FIJO | G174: 32,000.00 | I174: 918.40 | J174: 2,272.00 | K174: 368.00 | L174: 972.80 | M174: 2,268.80 | O174: 25.00 | Q174: 1,916.20 | R174: 4,908.80 | S174: 30,083.80
A175: 136 | B175: FRANCISCO JAVIER AMPARO | C175: Masculino | D175: TRANSPORTACION | E175: CHOFER | F175: FIJO | G175: 28,250.00 | I175: 810.78 | J175: 2,005.75 | K175: 324.88 | L175: 858.80 | M175: 2,002.93 | O175: 25.00 | Q175: =H175+I175+L175+N175+P175+O175 -> 1,694.58 | R175: =J175+K175+M175 -> 4,333.55 | S175: 26,555.43
A176: 137 | B176: BIRDA ESTER DISLA PEREZ | C176: Femenino | D176: TRANSPORTACION | E176: AUXILIAR ADMINISTRATIVO I | F176: FIJO | G176: 20,000.00 | I176: =+G176*2.87% -> 574.00 | J176: =+G176*7.1% -> 1,420.00 | K176: =G176*1.15% -> 230.00 | L176: =G176*3.04% -> 608.00 | M176: =G176*7.09% -> 1,418.00 | O176: 25.00 | Q176: =H176+I176+L176+N176+P176+O176 -> 1,207.00 | R176: =J176+K176+M176 -> 3,068.00 | S176: 18,793.00
A177: 138 | B177: GILBERT R. PAULINO RODRIGUEZ | C177: Masculino | D177: TRANSPORTACION | E177: MENSAJERO EXTERNO | F177: FIJO | G177: 23,000.00 | I177: 660.10 | J177: 1,633.00 | K177: 264.50 | L177: 699.20 | M177: 1,630.70 | O177: 25.00 | Q177: 1,384.30 | R177: 3,528.20 | S177: 21,615.70
A178: 139 | B178: DOMINGO ROA DINI | C178: Masculino | D178: TRANSPORTACION | E178: CHOFER | F178: FIJO | G178: 28,250.00 | I178: 810.78 | J178: 2,005.75 | K178: 324.88 | L178: 858.80 | M178: 2,002.93 | O178: 25.00 | Q178: 1,694.58 | R178: 4,333.55 | S178: 26,555.43
A179: 140 | B179: LOURDES RAQUEL ALCANTARA PEÑA | C179: Femenino | D179: TRANSPORTACION | E179: AUXILIAR ADMISTRATIVO | F179: FIJO | G179: 15,000.00 | I179: 430.50 | J179: 1,065.00 | K179: 172.50 | L179: 456.00 | M179: 1,063.50 | O179: 25.00 | Q179: 911.50 | R179: 2,301.00 | S179: 14,088.50
A180: 141 | B180: GEOVANNYS FELIZ MATOS | C180: Masculino | D180: TRANSPORTACION | E180: MENSAJERO EXTERNO | F180: FIJO | G180: 25,000.00 | I180: 717.50 | J180: 1,775.00 | K180: 287.50 | L180: 760.00 | M180: 1,772.50 | O180: 25.00 | Q180: 1,502.50 | R180: 3,835.00 | S180: 23,497.50
A181: 142 | B181: JULIO CESAR PEÑA DE LA ROSA | C181: Masculino | D181: TRANSPORTACION | E181: CHOFER | F181: FIJO | G181: 25,000.00 | I181: 717.50 | J181: 1,775.00 | K181: 287.50 | L181: 760.00 | M181: 1,772.50 | O181: 25.00 | Q181: 1,502.50 | R181: 3,835.00 | S181: 23,497.50
A182: 143 | B182: GERALD NICOLAS DOÑE FIGUEREO | C182: Masculino | D182: TRANSPORTACION | E182: MENSAJERO EXTERNO | F182: FIJO | G182: 25,000.00 | I182: 717.50 | J182: 1,775.00 | K182: 287.50 | L182: 760.00 | M182: 1,772.50 | O182: 25.00 | Q182: 1,502.50 | R182: 3,835.00 | S182: 23,497.50
A183: 144 | B183: CELIO TRAVIESO CRUZ | C183: Masculino | D183: TRANSPORTACION | E183: CHOFER | F183: FIJO | G183: 25,000.00 | I183: 717.50 | J183: 1,775.00 | K183: 287.50 | L183: 760.00 | M183: 1,772.50 | O183: 25.00 | Q183: 1,502.50 | R183: 3,835.00 | S183: 23,497.50
A184: 145 | B184: VICTOR BLANCO SALOMON | C184: Masculino | D184: TRANSPORTACION | E184: LAVADOR DE CARROS | F184: FIJO | G184: 15,000.00 | I184: 430.50 | J184: 1,065.00 | K184: 172.50 | L184: 456.00 | M184: 1,063.50 | O184: 25.00 | Q184: 911.50 | R184: 2,301.00 | S184: 14,088.50
A185: 146 | B185: EDWARD COSTE DURAN | C185: Masculino | D185: TRANSPORTACION | E185: MENSAJERO EXTERNO | F185: FIJO | G185: 25,000.00 | I185: 717.50 | J185: 1,775.00 | K185: 287.50 | L185: 760.00 | M185: 1,772.50 | O185: 25.00 | Q185: 1,502.50 | R185: 3,835.00 | S185: 23,497.50
A186: 147 | B186: YAN CARLOS LOPEZ HERNANDEZ | C186: Masculino | D186: TRANSPORTACION | E186: PARQUEADOR | F186: FIJO | G186: 10,000.00 | I186: 287.00 | J186: 710.00 | K186: 115.00 | L186: 304.00 | M186: 709.00 | O186: 25.00 | Q186: 616.00 | R186: 1,534.00 | S186: 9,384.00
A187: 148 | B187: MANUEL DE JESUS ROA DE LEON | C187: Masculino | D187: TRANSPORTACION | E187: MENSAJERO (A) INTERNO (A) | F187: FIJO | G187: 10,000.00 | I187: 287.00 | J187: 710.00 | K187: 115.00 | L187: 304.00 | M187: 709.00 | O187: 25.00 | Q187: 616.00 | R187: 1,534.00 | S187: 9,384.00
A188: 149 | B188: DIVAR LOWESKI ALMANZAR ALMANZAR | C188: Masculino | D188: TRANSPORTACION | E188: MENSAJERO (A) INTERNO (A) | F188: FIJO | G188: 23,000.00 | I188: 660.10 | J188: 1,633.00 | K188: 264.50 | L188: 699.20 | M188: 1,630.70 | O188: 25.00 | Q188: 1,384.30 | R188: 3,528.20 | S188: 21,615.70
A189: 150 | B189: RUBEN DARIO LUGO | C189: Masculino | D189: TRANSPORTACION | E189: MENSAJERO (A) INTERNO (A) | F189: FIJO | G189: 15,000.00 | I189: 430.50 | J189: 1,065.00 | K189: 172.50 | L189: 456.00 | M189: 1,063.50 | O189: 25.00 | Q189: 911.50 | R189: 2,301.00 | S189: 14,088.50
A190: 151 | B190: MANUEL DE JESUS ESPINAL DIAZ | C190: Masculino | D190: TRANSPORTACION | E190: CHOFER | F190: FIJO | G190: 28,250.00 | I190: 810.78 | J190: 2,005.75 | K190: 324.88 | L190: 858.80 | M190: 2,002.93 | O190: 25.00 | Q190: 1,694.58 | R190: 4,333.55 | S190: 26,555.43
A191: 152 | B191: JULIO CESAR REMIGIO GUZMAN | C191: Masculino | D191: TRANSPORTACION | E191: MENSAJERO EXTERNO | F191: FIJO | G191: 25,000.00 | I191: 717.50 | J191: 1,775.00 | K191: 287.50 | L191: 760.00 | M191: 1,772.50 | O191: 25.00 | Q191: 1,502.50 | R191: 3,835.00 | S191: 23,497.50
A192: 153 | B192: ANGEL DANIEL MONTERO BATISTA | C192: Masculino | D192: TRANSPORTACION | E192: MENSAJERO EXTERNO | F192: FIJO | G192: 26,250.00 | I192: 753.38 | J192: 1,863.75 | K192: 301.88 | L192: 798.00 | M192: 1,861.13 | O192: 25.00 | Q192: 1,576.38 | R192: 4,026.75 | S192: 24,673.63
A193: 154 | B193: EUDY DANI CABRAL | C193: Masculino | D193: TRANSPORTACION | E193: MENSAJERO EXTERNO | F193: FIJO | G193: 26,250.00 | I193: 753.38 | J193: 1,863.75 | K193: 301.88 | L193: 798.00 | M193: 1,861.13 | O193: 25.00 | Q193: 1,576.38 | R193: 4,026.75 | S193: 24,673.63
A194: 155 | B194: YEURI RODRIGUEZ BATISTA | C194: Masculino | D194: TRANSPORTACION | E194: MENSAJERO EXTERNO | F194: FIJO | G194: 26,250.00 | I194: =+G194*2.87% -> 753.38 | J194: =+G194*7.1% -> 1,863.75 | K194: =G194*1.15% -> 301.88 | L194: =G194*3.04% -> 798.00 | M194: =G194*7.09% -> 1,861.13 | O194: 25.00 | Q194: 1,576.38 | R194: 4,026.75 | S194: 24,673.63
A195: 156 | B195: AMAURYS YOVANNY REYES SUERO | C195: Masculino | D195: TRANSPORTACION | E195: CHOFER | F195: FIJO | G195: 28,250.00 | I195: 810.78 | J195: 2,005.75 | K195: 324.88 | L195: 858.80 | M195: 2,002.93 | O195: 25.00 | Q195: 1,694.58 | R195: 4,333.55 | S195: 26,555.43
A196: 157 | B196: CARLOS FRIAS GONZALEZ | C196: Masculino | D196: TRANSPORTACION | E196: CHOFER | F196: FIJO | G196: 28,250.00 | I196: 810.78 | J196: 2,005.75 | K196: 324.88 | L196: 858.80 | M196: 2,002.93 | O196: 25.00 | Q196: 1,694.58 | R196: 4,333.55 | S196: 26,555.43
A197: 158 | B197: ROBERTO LEINO HOEPELMAN | C197: Masculino | D197: TRANSPORTACION | E197: CHOFER | F197: FIJO | G197: 28,250.00 | I197: =+G197*2.87% -> 810.78 | J197: =+G197*7.1% -> 2,005.75 | K197: =G197*1.15% -> 324.88 | L197: =G197*3.04% -> 858.80 | M197: =G197*7.09% -> 2,002.93 | O197: 25.00 | P197: 3,666.66 | Q197: =H197+I197+L197+N197+P197+O197 -> 5,361.24 | R197: =J197+K197+M197 -> 4,333.55 | S197: =G197-Q197 -> 22,888.77
A198: 159 | B198: CARLOS ERNESTO GARCIA MATEO | C198: Masculino | D198: TRANSPORTACION | E198: CHOFER | F198: FIJO | G198: 28,250.00 | I198: 810.78 | J198: 2,005.75 | K198: 324.88 | L198: 858.80 | M198: 2,002.93 | O198: 25.00 | Q198: 1,694.58 | R198: 4,333.55 | S198: 26,555.43
A199: 160 | B199: LUIS ANDRES GOMEZ ABREU | C199: Masculino | D199: TRANSPORTACION | E199: CHOFER | F199: FIJO | G199: 28,250.00 | I199: 810.78 | J199: 2,005.75 | K199: 324.88 | L199: 858.80 | M199: 2,002.93 | O199: 25.00 | Q199: 1,694.58 | R199: 4,333.55 | S199: 26,555.43
A200: 161 | B200: CARMEN CAROLINA VELAZQUEZ DURAN DE C | C200: Femenino | D200: TRANSPORTACION | E200: AUXILIAR | F200: FIJO | G200: 15,000.00 | I200: 430.50 | J200: 1,065.00 | K200: 172.50 | L200: 456.00 | M200: 1,063.50 | O200: 25.00 | Q200: 911.50 | R200: 2,301.00 | S200: 14,088.50
B201: SUB-TOTAL | G201: =SUM(G169:G200) -> 773,250.00 | H201: 0 | I201: 22,192.28 | J201: 54,900.75 | K201: 8,892.38 | L201: 23,506.80 | M201: 54,823.43 | N201: 2,700.24 | O201: 800.00 | P201: 10,218.85 | Q201: 59,418.17 | R201: 118,616.55 | S201: 713,831.84
A202: DEPARTAMENTO DE COMPRAS Y CONTRATACIONES
A203: 162 | B203: EDWARD SALVADOR FIALLO DIAZ | C203: Masculino | D203: DEPARTAMENTO DE COMPRAS Y CONTRATACIONES | E203: ENC. COMPRAS Y CONTRATACIONES | F203: FIJO | G203: 100,000.00 | H203: 12,105.44 | I203: =+G203*2.87% -> 2,870.00 | J203: =+G203*7.1% -> 7,100.00 | K203: =G203*1.15% -> 1,150.00 | L203: =G203*3.04% -> 3,040.00 | M203: =G203*7.09% -> 7,090.00 | O203: 25.00 | Q203: =H203+I203+L203+N203+P203+O203 -> 18,040.44 | R203: =J203+K203+M203 -> 15,340.00 | S203: =G203-Q203 -> 81,959.56
A204: 163 | B204: BELKIS M.INMACULADA RODRIGUEZ POLANC | C204: Femenino | D204: DEPARTAMENTO DE COMPRAS Y CONTRATACIONES | E204: SECRETARIA EJECUTIVA | F204: Carrera Administrativa | G204: 45,000.00 | I204: =+G204*2.87% -> 1,291.50 | J204: =+G204*7.1% -> 3,195.00 | K204: =G204*1.15% -> 517.50 | L204: =G204*3.04% -> 1,368.00 | M204: =G204*7.09% -> 3,190.50 | O204: 25.00 | P204: 8,057.86 | Q204: =H204+I204+L204+N204+P204+O204 -> 10,742.36 | R204: =J204+K204+M204 -> 6,903.00 | S204: =G204-Q204 -> 34,257.64
... 182 more rows

Sheet Sheet1
A1: Sueldo Bruto (RD$) | B1: IS/R (Ley 11-92) (1*) | C1: Seguridad Social (LEY 87-01) | I1: Total Retenciones y Aportes | K1: Sueldo Neto (RD$)
C2: Seguro de Pensión (9.97%) | E2: Riesgos Laborales (1.3%) (2*) | F2: Seguro de Salud (10.53%) (3*) | H2: Registro Dependientes Adicionales (4*) | I2: Deducción Empleado | J2: Aportes Patronal
C3: Empleado (2.87%) | D3: Patronal (7.10%) | F3: Empleado (3.04%) | G3: Patronal (7.09%)
A4: 14,815,750.00 | B4: 1,490,887.59 | C4: 422,686.43 | D4: 1,045,670.25 | E4: 112,087.25 | F4: 428,723.60 | G4: 999,884.98 | H4: 113,410.08 | I4: =+B4+C4+F4+H4 -> 2,455,707.70 | J4: =+D4+E4+G4 -> 2,157,642.48 | K4: =+A4-B4-C4-F4-H4 -> 12,360,042.30
A8: 13,820,750.00 | B8: 1,412,491.06 | C8: 394,129.93 | D8: 975,025.25 | E8: 103,214.65 | F8: 398,475.60 | G8: 929,339.48 | H8: 103,959.24 | I8: =+B8+C8+F8+H8 -> 2,309,055.83 | J8: =+D8+E8+G8 -> 2,007,579.38 | K8: =+A8-B8-C8-F8-H8 -> 11,511,694.18
A9: 321,000.00 | B9: 27,891.20 | C9: 9,212.70 | D9: 22,791.00 | E9: 2,730.20 | F9: 9,758.40 | G9: 22,758.90 | H9: 4,050.36 | I9: 50,912.66 | J9: 48,280.10 | K9: 270,087.34
A10: 251,000.00 | B10: 22,657.73 | C10: 7,203.70 | D10: 17,821.00 | E10: 2,043.80 | F10: 7,630.40 | G10: 17,795.90 | H10: 4,050.36 | I10: 41,542.19 | J10: 37,660.70 | K10: 209,457.81
A11: 423,000.00 | B11: 27,847.59 | C11: 12,140.10 | D11: 30,033.00 | E11: 4,098.60 | F11: 12,859.20 | G11: 29,990.70 | H11: 1,350.12 | I11: 54,197.01 | J11: 64,122.30 | K11: 368,802.99
A12: =SUM(A8:A11) -> 14,815,750.00 | B12: =SUM(B8:B11) -> 1,490,887.58 | C12: 422,686.43 | D12: 1,045,670.25 | E12: 112,087.25 | F12: 428,723.60 | G12: 999,884.98 | H12: 113,410.08 | I12: 2,455,707.69 | J12: 2,157,642.48 | K12: 12,360,042.32
A14: =+A4-A12 -> 0.00 | B14: 0.01 | C14: 0.01 | D14: 0.00 | E14: 0.00 | F14: 0.00 | G14: 0.01 | H14: 0.00 | I14: 0.02 | J14: 0.00 | K14: -0.01
